Body Name,Body,Service Level,Expense Type,Expense Code,Narrative,Date,Transaction Number,Amount,Capital and Revenue,Supplier Name,Supplier ID
South Ribble Council,http://statistics.data.gov.uk/doc/local-authority/30UN,Housing,Cap Grant- Improve Grants,C570,"DFG work at ADDRESS REDACTED - Agreed to pay 50% Cost - 1250.00",03/03/2017,0000430332,"1,250.00",Revenue,ABBI PROPERTY SERVICES LTD,131357
South Ribble Council,http://statistics.data.gov.uk/doc/local-authority/30UN,Housing,Cap Grant- Improve Grants,C570,DFG work at ADDRESS REDACTED - Agreed to pay 50% Cost - 1250.00,10/03/2017,0000430555,"1,250.00",Revenue,ABBI PROPERTY SERVICES LTD,131357
South Ribble Council,http://statistics.data.gov.uk/doc/local-authority/30UN,Information Services,Peripherals,4246,6 x Samsung Tab2 black 9.7`` @ 354.00 each; 6 x Samsung Folio case @ 108.00 quote no. South Ribble NAME REDACTED,22/03/2017,0000430834,"2,772.00",Revenue,ACS SYSTEMS UK LTD,00070166
South Ribble Council,http://statistics.data.gov.uk/doc/local-authority/30UN,Development Enterprise & Comm Mgnt,Other Misc,4851,Supply 500 Sinatra Matte Paragon Metal Ball Pen printed on one side including origination and delivery. Colours: 250 light green,15/03/2017,0000430333,420.00,Revenue,AD OPTIONS LTD,00101556
South Ribble Council,http://statistics.data.gov.uk/doc/local-authority/30UN,Property Services,Advertising,4841,"Popper Shopper x 1000 at 1,416.50 (incl  Unit price, Origination Carriage Product no SPS.BA1425 The Portland Keyring Torch ",31/03/2017,0000431081,"1,603.45",Revenue,AD OPTIONS LTD,00101556
South Ribble Council,http://statistics.data.gov.uk/doc/local-authority/30UN,Area 2 - Waste Transport/Eastern & Central Teams,External Contractors Charges,4570,EXCESS Spec Repair - AE12AXR - JFC8172 - Insurance + Vat,03/03/2017,0000430159,250.00,Revenue,AEBI SCHMIDT UK LTD,00085672
South Ribble Council,http://statistics.data.gov.uk/doc/local-authority/30UN,Area 2 - Waste Transport/Eastern & Central Teams,External Contractors Charges,4570,VAT,03/03/2017,0000430159,0.00,Revenue,AEBI SCHMIDT UK LTD,00085672
South Ribble Council,http://statistics.data.gov.uk/doc/local-authority/30UN,Area 2 - Waste Transport/Eastern & Central Teams,External Contractors Charges,4570,REPAIR AND MAINTENANCE CONTRACT LEVEL 5C (With Skids) - AE14 AYG,17/03/2017,0000430493,"7,200.00",Revenue,AEBI SCHMIDT UK LTD,00085672
South Ribble Council,http://statistics.data.gov.uk/doc/local-authority/30UN,Area 2 - Waste Transport/Eastern & Central Teams,External Contractors Charges,4570,REPAIR AND MAINTENANCE CONTRACT - LEVEL 5C (With Skids) AE14 AYF,17/03/2017,0000430493,"7,200.00",Revenue,AEBI SCHMIDT UK LTD,00085672
South Ribble Council,http://statistics.data.gov.uk/doc/local-authority/30UN,Area 3 - Parks/Leyland East West,Capital Expenditure,C230,Replacement of vine propagation house timber frame with aluminium traditional system at Worden Park Walled Garden Leyland ,10/03/2017,0000430526,"23,099.34",Revenue,Alitex Ltd,132080
South Ribble Council,http://statistics.data.gov.uk/doc/local-authority/30UN,Revenues Plus,Financial,4811,post office trans,03/03/2017,0000430359,403.70,Revenue,ALLPAY LTD,00122276
South Ribble Council,http://statistics.data.gov.uk/doc/local-authority/30UN,Revenues Plus,Financial,4811,paypoint,03/03/2017,0000430359,104.59,Revenue,ALLPAY LTD,00122276
South Ribble Council,http://statistics.data.gov.uk/doc/local-authority/30UN,Revenues Plus,Financial,4811,webconnec,03/03/2017,0000430359,46.05,Revenue,ALLPAY LTD,00122276
South Ribble Council,http://statistics.data.gov.uk/doc/local-authority/30UN,Regeneration,Advertising,4842,5000 A5 Double sided  150gsm Silk � Leaflet = 140 each set x 3 = 420 in total for three bloom competitions,22/03/2017,0000430680,445.00,Revenue,AMJ LTD (THE STATIONERY STORE),00096946
South Ribble Council,http://statistics.data.gov.uk/doc/local-authority/30UN,Shared Assurance Services,Employee Related Insurance,1800,2017 Terrorism insurance,03/03/2017,0000430328,"4,476.29",Revenue,Aon UK Limited Accounts Division,132142
South Ribble Council,http://statistics.data.gov.uk/doc/local-authority/30UN,Housing,Cap Grant- Improve Grants,C570,DFG Adaptation work at 8 Fourfields as per your quote of 4250.00,01/03/2017,0000430100,"4,250.00",Revenue,APG DOMESTIC SERVICES,00061463
South Ribble Council,http://statistics.data.gov.uk/doc/local-authority/30UN,Housing,Cap Grant- Improve Grants,C570,"DFG Adaptation work at ADDRESS REDACTED, as per your quote of 2865.00",08/03/2017,0000430475,"2,865.00",Revenue,APG DOMESTIC SERVICES,00061463
South Ribble Council,http://statistics.data.gov.uk/doc/local-authority/30UN,Housing,Cap Grant- Improve Grants,C570,DFG Adaptation work at ADDRESS REDACTED as per your quote of 4460.00,17/03/2017,0000430681,"4,460.00",Revenue,APG DOMESTIC SERVICES,00061463
South Ribble Council,http://statistics.data.gov.uk/doc/local-authority/30UN,Housing,Cap Grant- Improve Grants,C570,DFG adaptation work at ADDRESS REDACTED as per your quote of 3700.00,31/03/2017,0000431061,"3,700.00",Revenue,APG DOMESTIC SERVICES,00061463
South Ribble Council,http://statistics.data.gov.uk/doc/local-authority/30UN,Neighbourhood Admin & Support,Clothing- Uniforms & Laundry,4410,Disley 7H8900FBH946 Short sleeved Oxford Light Blue shirt - complete with SRBC logo on left breast. 7H8910-SS,03/03/2017,0000430272,10.48,Revenue,ARCO,00014096
South Ribble Council,http://statistics.data.gov.uk/doc/local-authority/30UN,Neighbourhood Admin & Support,Clothing- Uniforms & Laundry,4410,Disley 7H8900FBH946 Short sleeved Oxford Light Blue shirt - complete with SRBC logo on left breast. 7H8914-SS,03/03/2017,0000430272,41.92,Revenue,ARCO,00014096
South Ribble Council,http://statistics.data.gov.uk/doc/local-authority/30UN,Neighbourhood Admin & Support,Clothing- Uniforms & Laundry,4410,"MENS 8A2400 DISLEY H946B Shirt, Light Blue/Short Sleeved - SRBC Logo - on left breast - 8A2450",03/03/2017,0000430272,52.70,Revenue,ARCO,00014096
South Ribble Council,http://statistics.data.gov.uk/doc/local-authority/30UN,Neighbourhood Admin & Support,Clothing- Uniforms & Laundry,4410,"MENS 8A2400 DISLEY H946B Shirt, Light Blue/Short Sleeved - SRBC Logo - on left breast - 8A2455",03/03/2017,0000430272,63.24,Revenue,ARCO,00014096
South Ribble Council,http://statistics.data.gov.uk/doc/local-authority/30UN,Neighbourhood Admin & Support,Clothing- Uniforms & Laundry,4410,"MENS 8A2400 DISLEY H946B Shirt, Light Blue/Short Sleeved - SRBC Logo - on leaf breast - 8A2465",03/03/2017,0000430272,42.16,Revenue,ARCO,00014096
South Ribble Council,http://statistics.data.gov.uk/doc/local-authority/30UN,Neighbourhood Admin & Support,Clothing- Uniforms & Laundry,4410,"MENS 8A2400 DISLEY H946B Shirt, Light Blue/Short Sleeved - SRBC Logo - on left breast -- 8A2470",03/03/2017,0000430272,52.70,Revenue,ARCO,00014096
South Ribble Council,http://statistics.data.gov.uk/doc/local-authority/30UN,Neighbourhood Admin & Support,Clothing- Uniforms & Laundry,4410,"MENS 8A2400 DISLEY H946B Shirt, Light Blue/Short Sleeved - SRBC Logo on left breast 8A2480",03/03/2017,0000430272,42.16,Revenue,ARCO,00014096
South Ribble Council,http://statistics.data.gov.uk/doc/local-authority/30UN,Regeneration,Other Misc,4851,"Ashdown 4 seater sofa - 625/9068 379.99 Tessa Compact 2 seater sofa - 578/3346 279.99 Airsprung Elmdon Kingsize Divan",29/03/2017,0000430393,"1,216.60",Revenue,ARGOS,00101271
South Ribble Council,http://statistics.data.gov.uk/doc/local-authority/30UN,Regeneration,Other Misc,4851,"Pressure Cooker - 498/9842 32.99 Bin dish drainer washing up bowl - 226/3735 14.99 Set of 3 pans and 2 frying pans ",15/03/2017,0000430394,256.02,Revenue,ARGOS,00101271
South Ribble Council,http://statistics.data.gov.uk/doc/local-authority/30UN,Property Services,Operational Furniture & Equip,4010,HOME Stefano Leather/Leather Eff Pair of 3 Seat Sofa - Black x 2  1399.96 Delivery charge 8.95 499/5135,22/03/2017,0000430814,"1,174.09",Revenue,ARGOS,00101271
South Ribble Council,http://statistics.data.gov.uk/doc/local-authority/30UN,Democratic Services,Repair Costs,4059,Engineer visit - investigate faults with envoy system and microphones,29/03/2017,0000430906,600.00,Revenue,AUDITEL,130495
South Ribble Council,http://statistics.data.gov.uk/doc/local-authority/30UN,Area 2 - Waste Transport/Eastern & Central Teams,External Contractors Charges,4570,RENEWAL OF AA FLEET BREAKDOWN COVER.  CUSTOMER NO. 1072982 - TO COVER 1.4.17 UNTIL 31.3.18 REGISTRAT,15/03/2017,0000430557,303.22,Revenue,AUTOMOBILE ASSOCIATION,00014685
South Ribble Council,http://statistics.data.gov.uk/doc/local-authority/30UN,Property Services,Rep & Maint Premises,2020,To attend Moss side depot to replace the motor as detailed in your estimate No 396,15/03/2017,0000429379,780.00,Revenue,AVALON DOORS & AWNINGS LTD,131051
South Ribble Council,http://statistics.data.gov.uk/doc/local-authority/30UN,Area 1 - Penwortham Western Parishes,Materials General,4040,100 Parking Permits Estimate 124061,22/03/2017,0000430645,293.00,Revenue,B & D PRINT SERVICES LTD,00015134
South Ribble Council,http://statistics.data.gov.uk/doc/local-authority/30UN,Area 1 - Penwortham Western Parishes,Materials General,4040,AS PER ESTIMATE NO. 124484 `Notice for Abandoned Vehicle` stickers - quantity of 500,29/03/2017,0000430886,298.00,Revenue,B & D PRINT SERVICES LTD,00015134
South Ribble Council,http://statistics.data.gov.uk/doc/local-authority/30UN,Area 3 - Parks/Leyland East West,Capital Expenditure,C230,TREES AND WHIPS ON ATTACHED LIST AS PER QUOTE DATED 09/02/17,01/03/2017,0000430242,"1,326.70",Revenue,BANNISTER HALL LANDSCAPE SUPPLIES,00117786
South Ribble Council,http://statistics.data.gov.uk/doc/local-authority/30UN,Area 2 - Waste Transport/Eastern & Central Teams,Materials General,4040,1 TOW HITCH - JFC8351 - HTR09A3 - GA,17/03/2017,0000430707,280.00,Revenue,BARLOW TRAILERS LTD,00016120
South Ribble Council,http://statistics.data.gov.uk/doc/local-authority/30UN,Regeneration,Capital Expenditure,C234,Pedestrian surveys and interviews,17/03/2017,0000430683,"2,600.00",Revenue,Barrons,132059
South Ribble Council,http://statistics.data.gov.uk/doc/local-authority/30UN,Development Enterprise & Comm Mgnt,Other Misc,485K,"Central Lancashire Employment Land Review 2017 - South Ribble Business Survey 300 companies at a cost of 3,000. ",31/03/2017,0000430558,"3,000.00",Revenue,BE LTD,130661
South Ribble Council,http://statistics.data.gov.uk/doc/local-authority/30UN,Area 3 - Parks/Leyland East West,Grounds Maint Cntrctrs Chgs,4657,Moss Side Kickabout Area  - Replace x3 400 watt Lamps & igniters. Collect Scaffolding from Leisure Centre for re-lamping,01/03/2017,0000429850,461.20,Revenue,BELEC ELECTRICAL LTD,130290
South Ribble Council,http://statistics.data.gov.uk/doc/local-authority/30UN,Property Services,Rep & Maint Premises,2020,Annual Contract 2016/2017 for External Lights/Emergency Lighting Maintenance at Civic Centre,01/03/2017,0000430183,276.00,Revenue,BELEC ELECTRICAL LTD,130290
South Ribble Council,http://statistics.data.gov.uk/doc/local-authority/30UN,Property Services,Rep & Maint Premises,2020,Undertake the electrical remedials at the civic centre as per your quotation which were identified following the electrical test,01/03/2017,0000430273,"1,358.80",Revenue,BELEC ELECTRICAL LTD,130290
South Ribble Council,http://statistics.data.gov.uk/doc/local-authority/30UN,Property Services,Rep & Maint Premises,2020,Moss Depot Vehicle Workshop Provide and replace 2 no low bay flourescant  light  units,01/03/2017,0000430275,653.57,Revenue,BELEC ELECTRICAL LTD,130290
South Ribble Council,http://statistics.data.gov.uk/doc/local-authority/30UN,Property Services,Rep & Maint Premises,2020,"Schedule of Works 			Type of Works: Electrical safety remedial works - as per schedule below ``Address:  Civic C",22/03/2017,0000430831,414.14,Revenue,BELEC ELECTRICAL LTD,130290
South Ribble Council,http://statistics.data.gov.uk/doc/local-authority/30UN,Area 3 - Parks/Leyland East West,External Contractors Charges,4570,EMERGENCY REPAIRS TO CHRISTMAS TREE LIGHTS AND CHECK FUNCTION OF LIGHTS CURRENTLY AT MOSS SIDE ,29/03/2017,0000430895,250.00,Revenue,BELEC ELECTRICAL LTD,130290
South Ribble Council,http://statistics.data.gov.uk/doc/local-authority/30UN,Area 3 - Parks/Leyland East West,Materials General,4040,2 Lectern (2 leg) in steel A2 Multiguard panel on 19mm backing to artwork agreed @ 520.00.  As per your quotation 8665,29/03/2017,0000430951,"1,040.00",Revenue,BORDER SIGNS AND GRAPHIX,130927
South Ribble Council,http://statistics.data.gov.uk/doc/local-authority/30UN,Area 3 - Parks/Leyland East West,Materials General,4040,1 Carriage/Delivery,29/03/2017,0000430951,65.00,Revenue,BORDER SIGNS AND GRAPHIX,130927
South Ribble Council,http://statistics.data.gov.uk/doc/local-authority/30UN,Healthy Communities,Other Misc,4851,Professional services in relation to South Ribble Tennis and Fitness Centre car park extension - remodelling,31/03/2017,0000430396,"2,318.00",Revenue,BRAMLEY-PATE & PARTNERS,00093091
South Ribble Council,http://statistics.data.gov.uk/doc/local-authority/30UN,Healthy Communities,Other Misc,4851,cancelled by credit note,03/03/2017,0000424807,437.50,Revenue,Brathay Trust,131702
South Ribble Council,http://statistics.data.gov.uk/doc/local-authority/30UN,Healthy Communities,Sports Dev Expenses,4890,Booking  2 bikeability training courses at the national cycling centre Manchester 30-31st march,01/03/2017,0000430106,800.00,Revenue,BRITISH CYCLING,130859
South Ribble Council,http://statistics.data.gov.uk/doc/local-authority/30UN,Property Services,Energy Costs,2303,24/9/16 to 10/10/16,10/03/2017,0000428589,"2,180.07",Revenue,BRITISH GAS BUSINESS,00102458
South Ribble Council,http://statistics.data.gov.uk/doc/local-authority/30UN,Property Services,Rep & Maint Premises,2020,"Annual contract 2016 / 2017 for care plan 3 at the Civic Centre, Leyland",08/03/2017,0000430278,"4,653.91",Revenue,BRITISH GAS SERVICES (COMMERCIAL) LTD,00016214
South Ribble Council,http://statistics.data.gov.uk/doc/local-authority/30UN,Property Services,Operational Furniture & Equip,4013,"Annual contract 2016 / 2017 for care plan 1 for the catering equipment at the Civic Centre, Leyland",10/03/2017,0000430476,622.61,Revenue,BRITISH GAS SERVICES (COMMERCIAL) LTD,00016214
South Ribble Council,http://statistics.data.gov.uk/doc/local-authority/30UN,Property Services,Rep & Maint Premises,2020,Annual contract 2016 / 2017 for care plan 3 at Leyland Market,24/03/2017,0000430896,"1,504.09",Revenue,BRITISH GAS SERVICES (COMMERCIAL) LTD,00016214
South Ribble Council,http://statistics.data.gov.uk/doc/local-authority/30UN,Property Services,Rep & Maint Premises,2020,"Annual contract 2016 / 2017 for care plan 3 at unit 81A Bison Place Moss Side, Leyland",24/03/2017,0000430897,"1,144.57",Revenue,BRITISH GAS SERVICES (COMMERCIAL) LTD,00016214
South Ribble Council,http://statistics.data.gov.uk/doc/local-authority/30UN,Property Services,Rep & Maint Premises,2020,"Annual contract 2016 / 2017 for care plan 3 at Moss Side Community Centre, Dunkirk Lane, Leyland",24/03/2017,0000430898,306.25,Revenue,BRITISH GAS SERVICES (COMMERCIAL) LTD,00016214
South Ribble Council,http://statistics.data.gov.uk/doc/local-authority/30UN,Property Services,Rep & Maint Premises,2020,"Annual contract 2016 / 2017 for care plan 3 at Holland House farm changing pavilion, Walton Le Dale",24/03/2017,0000430899,750.21,Revenue,BRITISH GAS SERVICES (COMMERCIAL) LTD,00016214
South Ribble Council,http://statistics.data.gov.uk/doc/local-authority/30UN,Property Services,Rep & Maint Premises,2020,"Annual contract 2016 / 2017 for care plan 3 at Carr Street Community Centre, Bamber Bridge",24/03/2017,0000430900,306.25,Revenue,BRITISH GAS SERVICES (COMMERCIAL) LTD,00016214
South Ribble Council,http://statistics.data.gov.uk/doc/local-authority/30UN,Property Services,Rep & Maint Premises,2020,"Annual contract 2016 / 2076 for care plan 3 at Moss Side Depot, 81 Bison Place, Leyland",24/03/2017,0000430901,"1,704.86",Revenue,BRITISH GAS SERVICES (COMMERCIAL) LTD,00016214
South Ribble Council,http://statistics.data.gov.uk/doc/local-authority/30UN,Neighbourhood Admin & Support,Materials General,4040,DERBY SLIMLINE LITTER BIN WITH ASHTRAY (BLUE) - BX45 2596 REF:352447/#REV2/SMI,29/03/2017,0000430715,"2,300.00",Revenue,BROXAP LTD,00028736
South Ribble Council,http://statistics.data.gov.uk/doc/local-authority/30UN,Neighbourhood Admin & Support,Materials General,4040,DERBY SLIMLINE LITTER BIN WITH ASHTRAY (BLACK) - REF:352447/#REV2/SMI,29/03/2017,0000430715,460.00,Revenue,BROXAP LTD,00028736
South Ribble Council,http://statistics.data.gov.uk/doc/local-authority/30UN,Homelessness,Contributions,4730,calico provision of floating support service 6 months 01/10/16-31/03/17,24/03/2017,0000430856,"9,999.00",Revenue,Calico Enterprise,132188
South Ribble Council,http://statistics.data.gov.uk/doc/local-authority/30UN,Revenues Plus,Peripherals,4242,Risk and Verification Portal. New claims and ATLAS,01/03/2017,0000430160,"5,000.00",Revenue,CAPITA BUSINESS SERVICES LTD,00122179
South Ribble Council,http://statistics.data.gov.uk/doc/local-authority/30UN,Revenues Plus,Peripherals,4242,E-notifications etc per quote RENXPG787,17/03/2017,0000430739,"11,600.00",Revenue,CAPITA BUSINESS SERVICES LTD,00122179
South Ribble Council,http://statistics.data.gov.uk/doc/local-authority/30UN,HR & Communications,Recruitment Expenses,1500,STAGE ONE RECRUITMENT OF THE NEW CEO,29/03/2017,0000431011,"5,000.00",Revenue,CAPITA BUSINESS SERVICES LTD,00019127
South Ribble Council,http://statistics.data.gov.uk/doc/local-authority/30UN,Regeneration,Professional Fees,4520,master planning,31/03/2017,0000430982,"14,022.00",Revenue,CAPITA PROPERTY AND INFRASTRUCTURE LTD,131347
South Ribble Council,http://statistics.data.gov.uk/doc/local-authority/30UN,Regeneration,Other Misc,4851,van fitting,10/03/2017,0000430352,250.00,Revenue,Carma Joinery Services,132180
South Ribble Council,http://statistics.data.gov.uk/doc/local-authority/30UN,HR & Communications,Agency Fees,1121,WORK CARRIED OUT BY NAME REDACTED UP UNTIL 31ST MARCH 2017,29/03/2017,0000430996,"4,522.40",Revenue,NAME REDACTED,132223
South Ribble Council,http://statistics.data.gov.uk/doc/local-authority/30UN,HR & Communications,Agency Fees,1121,WORK CARRIED OUT BY NAME REDACTED UP UNTIL 31ST MARCH 2017,29/03/2017,0000430997,"2,826.50",Revenue,NAME REDACTED,132223
South Ribble Council,http://statistics.data.gov.uk/doc/local-authority/30UN,HR & Communications,Agency Fees,1121,WORK CARRIED OUT BY NAME REDACTED UP UNTIL 31ST MARCH 2017,31/03/2017,0000431083,"2,713.44",Revenue,NAME REDACTED,132223
South Ribble Council,http://statistics.data.gov.uk/doc/local-authority/30UN,Scrutiny,Consultancy Fees,4541,Governance Diagnostic Assessment carried out by NAME REDACTED,31/03/2017,0000430932,"11,074.61",Revenue,CENTRE FOR PUBLIC SCRUTINY,00119409
South Ribble Council,http://statistics.data.gov.uk/doc/local-authority/30UN,Area 3 - Parks/Leyland East West,Grounds Maint Cntrctrs Chgs,4657,BLACK - XX F010 3215 26,22/03/2017,0000430708,426.78,Revenue,CENTREWIRE,131861
South Ribble Council,http://statistics.data.gov.uk/doc/local-authority/30UN,Area 3 - Parks/Leyland East West,Grounds Maint Cntrctrs Chgs,4657,DELIVERY TO PR26 7QR,22/03/2017,0000430708,60.00,Revenue,CENTREWIRE,131861
South Ribble Council,http://statistics.data.gov.uk/doc/local-authority/30UN,Area 3 - Parks/Leyland East West,Grounds Maint Cntrctrs Chgs,4657,DL GATE - 4000mm - RH POSTS WITH RAIL SLOTS AT FRONT,22/03/2017,0000430717,541.80,Revenue,CENTREWIRE,131861
South Ribble Council,http://statistics.data.gov.uk/doc/local-authority/30UN,Area 3 - Parks/Leyland East West,Grounds Maint Cntrctrs Chgs,4657,ESTATE FENCE TUBULAR END POST - LE S350 20 50 29 - WOODSTOCK LARGE MOBILITY PLAIN HOOPS PCC,22/03/2017,0000430717,39.78,Revenue,CENTREWIRE,131861
South Ribble Council,http://statistics.data.gov.uk/doc/local-authority/30UN,Homelessness,Contractors Charges 5,5311,"Flat 11 cotswold house EE, SRBC placement 28 days  - 987.96 + VAT  move out date 20/02/2017",01/03/2017,0000430218,987.96,Revenue,CHORLEY BOROUGH COUNCIL,00017352
South Ribble Council,http://statistics.data.gov.uk/doc/local-authority/30UN,Democratic Services,Consultancy Fees,4541,"Carol Russell, Dem Services Mgr seconded from Chorley BC - recharge salary costs for 2 months.",03/03/2017,0000430240,"11,200.00",Revenue,CHORLEY BOROUGH COUNCIL,00017352
South Ribble Council,http://statistics.data.gov.uk/doc/local-authority/30UN,Area 2 - Waste Transport/Eastern & Central Teams,External Contractors Charges,4570,Refuse Collection - Buckshaw Village 2016-17,17/03/2017,0000430247,"49,411.00",Revenue,CHORLEY BOROUGH COUNCIL,00017352
South Ribble Council,http://statistics.data.gov.uk/doc/local-authority/30UN,Homelessness,Contributions,4730,Cotswold House Block booking Feb 2017 28 days  987.96 + VAT.,15/03/2017,0000430630,987.96,Revenue,CHORLEY BOROUGH COUNCIL,00017352
South Ribble Council,http://statistics.data.gov.uk/doc/local-authority/30UN,Homelessness,Contributions,4730,"Cotswold House, block booking Flat 20 March 2017  1093.68 + VAT (35.28 x 31 days)",24/03/2017,0000430863,"1,093.68",Revenue,CHORLEY BOROUGH COUNCIL,00017352
South Ribble Council,http://statistics.data.gov.uk/doc/local-authority/30UN,Shared Financial Services,Professional Fees,4510,Capita Treasury Services for the financial year 2016-17,29/03/2017,0000430881,"7,275.00",Revenue,CHORLEY BOROUGH COUNCIL,00017352
South Ribble Council,http://statistics.data.gov.uk/doc/local-authority/30UN,Shared Financial Services,External Contractors Charges,4570,Provision of Shared Financial Services for 2016/17,29/03/2017,0000430882,"150,000.00",Revenue,CHORLEY BOROUGH COUNCIL,00017352
South Ribble Council,http://statistics.data.gov.uk/doc/local-authority/30UN,Property Services,Rep & Maint Fixed Plant,2035,"Supply & install alterations to the intruder alarm system at Worden Arts Centre & Derby Wing, Worden Park PR25 1DJ",03/03/2017,0000430193,"3,068.00",Revenue,CHUBB ELECTRONIC SECURITY SYSTEMS LTD,00090625
South Ribble Council,http://statistics.data.gov.uk/doc/local-authority/30UN,Area 2 - Waste Transport/Eastern & Central Teams,Materials General,4040,"1 sun visor, PJ62 UCL, JFC8071. (NAME REDACTED)",03/03/2017,0000430363,251.86,Revenue,CICELEY COMMERCIALS LTD,00059381
South Ribble Council,http://statistics.data.gov.uk/doc/local-authority/30UN,Area 2 - Waste Transport/Eastern & Central Teams,External Contractors Charges,4570,SPEC REPAIR PJ62 UCL JFC8368,22/03/2017,0000430780,443.73,Revenue,CICELEY COMMERCIALS LTD,00059381
South Ribble Council,http://statistics.data.gov.uk/doc/local-authority/30UN,Area 2 - Waste Transport/Eastern & Central Teams,Materials General,4040,1 AIR DRYER - PO13UUM - JFC8233 - AW,29/03/2017,0000430972,531.14,Revenue,CICELEY COMMERCIALS LTD,00059381
South Ribble Council,http://statistics.data.gov.uk/doc/local-authority/30UN,Information Services,Capital Expenditure,C234,Upgrade from V14 to V16 & to move from Server 2008 to 2012,22/03/2017,0000430740,"12,720.00",Revenue,CIVICA UK LTD,00102717
South Ribble Council,http://statistics.data.gov.uk/doc/local-authority/30UN,HR & Communications,Balance Sheet,0030,CHILDCARE VOUCHERS JANUARY 2017,31/03/2017,0000429102,"2,850.00",Revenue,COMPUTERSHARE VOUCHER SERVICES,00116499
South Ribble Council,http://statistics.data.gov.uk/doc/local-authority/30UN,HR & Communications,Balance Sheet,0030,CHILDCARE VOUCHERS FEBRUARY 2017,31/03/2017,0000429843,"2,945.50",Revenue,COMPUTERSHARE VOUCHER SERVICES,00116499
South Ribble Council,http://statistics.data.gov.uk/doc/local-authority/30UN,HR & Communications,Balance Sheet,0030,CHILDCARE VOUCHERS MARCH 2017,31/03/2017,0000430505,"2,940.83",Revenue,COMPUTERSHARE VOUCHER SERVICES,00116499
South Ribble Council,http://statistics.data.gov.uk/doc/local-authority/30UN,Regeneration,Capital Expenditure,C234,Carr Wood site investigation and proposals for link path improvements,31/03/2017,0000430914,"3,110.04",Revenue,CONSERVATION CONTRACTS NORTH WEST LIMITED,132137
South Ribble Council,http://statistics.data.gov.uk/doc/local-authority/30UN,Property Services,Energy Costs,2304,31/1/17 estimated,01/03/2017,0000430220,306.50,Revenue,Contract Natural Gas Re:CNG,132203
South Ribble Council,http://statistics.data.gov.uk/doc/local-authority/30UN,Property Services,Rep & Maint Premises,2020,Unit 4 Middleforth front elevation roofline Remove defective timber fascia to high level front elevation. Supply and fit replacement,01/03/2017,0000430214,379.50,Revenue,COOPER BESPOKE JOINERY LTD,00104456
South Ribble Council,http://statistics.data.gov.uk/doc/local-authority/30UN,Property Services,Rep & Maint Premises,2020,materials,01/03/2017,0000430214,397.84,Revenue,COOPER BESPOKE JOINERY LTD,00104456
South Ribble Council,http://statistics.data.gov.uk/doc/local-authority/30UN,Property Services,Rep & Maint Premises,2020,"Attend worden park walled garden to carry out repairs to 2No large timber gates, to include the replacement of steel hinges ",31/03/2017,0000431064,214.50,Revenue,COOPER BESPOKE JOINERY LTD,00104456
South Ribble Council,http://statistics.data.gov.uk/doc/local-authority/30UN,Property Services,Rep & Maint Premises,2020,materilas,31/03/2017,0000431064,132.50,Revenue,COOPER BESPOKE JOINERY LTD,00104456
South Ribble Council,http://statistics.data.gov.uk/doc/local-authority/30UN,Housing,Cap Grant- Improve Grants,C570,DFG works at ADDRESS REDACTED,31/03/2017,0000431063,"4,570.00",Revenue,Cornerstone Building & Maintenance Ltd,131383
South Ribble Council,http://statistics.data.gov.uk/doc/local-authority/30UN,Healthy Communities,Other Misc,4851,Yoga course for NAME REDACTED 100 deposit to be paid as soon as possible to book a place on the course.,15/03/2017,0000430564,450.00,Revenue,Creative Calm Training Ltd,132163
South Ribble Council,http://statistics.data.gov.uk/doc/local-authority/30UN,Revenues Plus,Postage,4291,Postage,10/03/2017,0000430522,835.57,Revenue,CRITIQOM,131053
South Ribble Council,http://statistics.data.gov.uk/doc/local-authority/30UN,Revenues Plus,Stationery,4130,Mail Services Staionery,10/03/2017,0000430540,789.51,Revenue,CRITIQOM,131053
South Ribble Council,http://statistics.data.gov.uk/doc/local-authority/30UN,Housing,Cap Grant- Improve Grants,C570,DFG works to bathroom at ADDRESS REDACTED,08/03/2017,0000430434,"3,900.00",Revenue,Croston Plumbing & Heating Ltd,131545
South Ribble Council,http://statistics.data.gov.uk/doc/local-authority/30UN,Housing,Cap Grant- Improve Grants,C570,DFG to bathroom at ADDRESS REDACTED,15/03/2017,0000430589,"2,300.00",Revenue,Croston Plumbing & Heating Ltd,131545
South Ribble Council,http://statistics.data.gov.uk/doc/local-authority/30UN,Property Services,Rep & Maint Premises,2020,2016 / 2017 annual contract  for Vent plant maintenance/Cleaning/AHU Maintenance at the civic centre.,15/03/2017,0000430656,495.00,Revenue,DAIKIN APPLIED SERVICE,130324
South Ribble Council,http://statistics.data.gov.uk/doc/local-authority/30UN,Area 2 - Waste Transport/Eastern & Central Teams,External Contractors Charges,4570,INSURANCE EXCESS & VAT ON REPAIR MV12 SUA JFC8272,03/03/2017,0000430345,250.00,Revenue,DAVAND LTD (trading as Longton Coachcraft),131579
South Ribble Council,http://statistics.data.gov.uk/doc/local-authority/30UN,Area 2 - Waste Transport/Eastern & Central Teams,External Contractors Charges,4570,vat,03/03/2017,0000430345,0.00,Revenue,DAVAND LTD (trading as Longton Coachcraft),131579
South Ribble Council,http://statistics.data.gov.uk/doc/local-authority/30UN,Area 2 - Waste Transport/Eastern & Central Teams,External Contractors Charges,4570,BODY REPAIR EXCESS & VAT PJ07 GNO JFC8348,17/03/2017,0000430718,250.00,Revenue,DAVAND LTD (trading as Longton Coachcraft),131579
South Ribble Council,http://statistics.data.gov.uk/doc/local-authority/30UN,Area 2 - Waste Transport/Eastern & Central Teams,External Contractors Charges,4570,VAT,17/03/2017,0000430718,0.00,Revenue,DAVAND LTD (trading as Longton Coachcraft),131579
South Ribble Council,http://statistics.data.gov.uk/doc/local-authority/30UN,Area 2 - Waste Transport/Eastern & Central Teams,External Contractors Charges,4570,SPEC REPAIR - JFC8375 - PK16VSM - PD,29/03/2017,0000430967,296.00,Revenue,DAVAND LTD (trading as Longton Coachcraft),131579
South Ribble Council,http://statistics.data.gov.uk/doc/local-authority/30UN,Healthy Communities,Other Misc,4851,Delivery of cycling activity and bike maintenance - between September and January 2017,22/03/2017,0000430807,315.00,Revenue,David Boyle,132006
South Ribble Council,http://statistics.data.gov.uk/doc/local-authority/30UN,Environmental Health,Operational Furniture & Equip,4010,ManUp key complete with 4 interchangeable tips as per NAME REDACTED,22/03/2017,0000430304,369.50,Revenue,DCR Inspections Systems Ltd,132201
South Ribble Council,http://statistics.data.gov.uk/doc/local-authority/30UN,Area 2 - Waste Transport/Eastern & Central Teams,Materials General,4040,"1 BUMPER, 1 MUDGUARD, 1 SCREEN WASHER PUMP - VK09 AHJ - JFC8132",08/03/2017,0000430350,341.67,Revenue,DENNIS EAGLE LTD,00019774
South Ribble Council,http://statistics.data.gov.uk/doc/local-authority/30UN,Property Services,Rep & Maint Premises,2020,bomb threat alarm,22/03/2017,0000430134,360.00,Revenue,DES Electrical Services Ltd,131437
South Ribble Council,http://statistics.data.gov.uk/doc/local-authority/30UN,Property Services,Rep & Maint Fixed Plant,2035,To undertake works to the fire alarm system at Moss Side depot as detailed in your quotation  dated 1st September 2016,15/03/2017,0000430135,"2,585.00",Revenue,DES Electrical Services Ltd,131437
South Ribble Council,http://statistics.data.gov.uk/doc/local-authority/30UN,Property Services,Rep & Maint Premises,2020,To carry out works as per quotation dated 1/9/2016 for the Civic  Centre Fire Alarm at South Ribble Borough Council   1,15/03/2017,0000430136,"8,374.00",Revenue,DES Electrical Services Ltd,131437
South Ribble Council,http://statistics.data.gov.uk/doc/local-authority/30UN,Development Enterprise & Comm Mgnt,Other Misc,485A,Delivery of social media workshop for businesses.,03/03/2017,0000430324,300.00,Revenue,DigiEnable,132161
South Ribble Council,http://statistics.data.gov.uk/doc/local-authority/30UN,Development Enterprise & Comm Mgnt,Other Misc,485K,Delivery of social media workshop for businesses on 15th March 2017 Cost 300.00,31/03/2017,0000430944,300.00,Revenue,DigiEnable,132161
South Ribble Council,http://statistics.data.gov.uk/doc/local-authority/30UN,Regeneration,Professional Fees,4520,Management of woodland improvements at Walton Park,31/03/2017,0000430938,"1,650.00",Revenue,ECO-ARTS,130217
South Ribble Council,http://statistics.data.gov.uk/doc/local-authority/30UN,Information Services,Peripherals,4260,Peripherals,08/03/2017,0000430460,"2,260.64",Revenue,EE Ltd,131653
South Ribble Council,http://statistics.data.gov.uk/doc/local-authority/30UN,HR & Communications,Training Expense-Course Fees,1405,"PREP, PLANNING AND DELIVERY OF WORKSHOP CORE MANAGERS TEAM ON THURSDAY 23RD MARCH 2017",31/03/2017,0000431015,"1,500.00",Revenue,ELIANNA BUSINESS STRATEGIES LTD,130949
South Ribble Council,http://statistics.data.gov.uk/doc/local-authority/30UN,HR & Communications,Training Expense-Course Fees,1405,bookz,31/03/2017,0000431015,169.83,Revenue,ELIANNA BUSINESS STRATEGIES LTD,130949
South Ribble Council,http://statistics.data.gov.uk/doc/local-authority/30UN,HR & Communications,Training Expense-Course Fees,1406,Public speaking 1:1 training NAME REDACTED,03/03/2017,0000430373,450.00,Revenue,EMMA TAYLOR PRESENTS.CU.UK,00112943
South Ribble Council,http://statistics.data.gov.uk/doc/local-authority/30UN,HR & Communications,Training Expense-Course Fees,1406,MEMBER DEVELOPMENT TRAINING - CHAIRING SKILLS (DATE TBC),29/03/2017,0000430952,750.00,Revenue,EMMA TAYLOR PRESENTS.CU.UK,00112943
South Ribble Council,http://statistics.data.gov.uk/doc/local-authority/30UN,Area 2 - Waste Transport/Eastern & Central Teams,Waste Disposal Charges,5110,permit,31/03/2017,0000431045,"1,980.00",Revenue,ENVIRONMENT AGENCY,00009755
South Ribble Council,http://statistics.data.gov.uk/doc/local-authority/30UN,Democratic Services,Other Misc,4424,Hire of 85 - 6ft x 30`` Polytop tables *** Please make sure these poly tops are all cleaned and legs secure before sending out,15/03/2017,0000430650,515.75,Revenue,ev-ent Hire,131954
South Ribble Council,http://statistics.data.gov.uk/doc/local-authority/30UN,Development Enterprise & Comm Mgnt,Other Misc,4851,Dance from the Heart Filming,17/03/2017,0000430657,250.00,Revenue,Everyonemedia Ltd,131539
South Ribble Council,http://statistics.data.gov.uk/doc/local-authority/30UN,Revenues Plus,Professional Fees,4520,Annual fee from 31.3.17. 12 month period Citizenview Plus,17/03/2017,0000430745,"1,600.00",Revenue,EXPERIAN LTD,00094045
South Ribble Council,http://statistics.data.gov.uk/doc/local-authority/30UN,Area 2 - Waste Transport/Eastern & Central Teams,Materials General,4040,"1 FILTER KIT, 1 LAMP COVER, 1 REAR LAMP, 6 BEARINGS - PO16HMX - JFC7743 - BO",22/03/2017,0000430760,148.68,Revenue,F R SHARROCK LTD,00034539
South Ribble Council,http://statistics.data.gov.uk/doc/local-authority/30UN,Area 2 - Waste Transport/Eastern & Central Teams,Materials General,4040,"1 FILTER KIT, 6 BEARINGS, 21 SCREWS, 1 REAR LAMP, 2 NO PLATE LAMPS, 3 SOLE PLATES - PO16HMV JFC7742 - BO",22/03/2017,0000430760,409.25,Revenue,F R SHARROCK LTD,00034539
South Ribble Council,http://statistics.data.gov.uk/doc/local-authority/30UN,Area 2 - Waste Transport/Eastern & Central Teams,Materials General,4040,"5  CYLINDERS, 5 SOLE PLATES, 35 SCREWS, 10 BEARINGS, 1 TOW HITCH, 2 ADJUSTING RODS, 2 REAR PINS",29/03/2017,0000430761,"1,787.39",Revenue,F R SHARROCK LTD,00034539
South Ribble Council,http://statistics.data.gov.uk/doc/local-authority/30UN,Area 2 - Waste Transport/Eastern & Central Teams,Materials General,4040,"2 BRAKE CABLES, 2 BRAKE KITS - TMR03A2 - JFC7737 - BO",29/03/2017,0000430912,562.08,Revenue,F R SHARROCK LTD,00034539
South Ribble Council,http://statistics.data.gov.uk/doc/local-authority/30UN,Area 2 - Waste Transport/Eastern & Central Teams,Materials General,4040,1 REPAIR KIT - PJ62 UCH - JFC8302 - GA,22/03/2017,0000430737,292.26,Revenue,Farid Hillend Engineering Limited,130575
South Ribble Council,http://statistics.data.gov.uk/doc/local-authority/30UN,Area 2 - Waste Transport/Eastern & Central Teams,External Contractors Charges,4570,RESIDUAL WASTE FEBRUARY 2017,17/03/2017,0000430485,"37,011.89",Revenue,FCC Environment Services (UK) Ltd,131612
South Ribble Council,http://statistics.data.gov.uk/doc/local-authority/30UN,Area 2 - Waste Transport/Eastern & Central Teams,External Contractors Charges,4570,DRY RECYCLABLE NON-TERRACED  FEBRUARY 2017,17/03/2017,0000430485,"37,901.96",Revenue,FCC Environment Services (UK) Ltd,131612
South Ribble Council,http://statistics.data.gov.uk/doc/local-authority/30UN,Area 2 - Waste Transport/Eastern & Central Teams,External Contractors Charges,4570,DRY RECYCLABLE TERRACED -  FEBRUARY 2017,17/03/2017,0000430485,"1,802.23",Revenue,FCC Environment Services (UK) Ltd,131612
South Ribble Council,http://statistics.data.gov.uk/doc/local-authority/30UN,Area 2 - Waste Transport/Eastern & Central Teams,External Contractors Charges,4570,ORGANIC WASTE NON-TERRACED  FEBRUARY 2017,17/03/2017,0000430485,"26,255.79",Revenue,FCC Environment Services (UK) Ltd,131612
South Ribble Council,http://statistics.data.gov.uk/doc/local-authority/30UN,Area 2 - Waste Transport/Eastern & Central Teams,External Contractors Charges,4570,SCHEDULE 2 PROPERTIES -  FEBRUARY 2017,17/03/2017,0000430485,"1,505.22",Revenue,FCC Environment Services (UK) Ltd,131612
South Ribble Council,http://statistics.data.gov.uk/doc/local-authority/30UN,Area 2 - Waste Transport/Eastern & Central Teams,External Contractors Charges,4570,COMMERCIAL WASTE COLLECTIONS  FEBRUARY 2017,17/03/2017,0000430485,"5,891.64",Revenue,FCC Environment Services (UK) Ltd,131612
South Ribble Council,http://statistics.data.gov.uk/doc/local-authority/30UN,Area 2 - Waste Transport/Eastern & Central Teams,External Contractors Charges,4570,BULKY WASTE  FEBRUARY 2017,17/03/2017,0000430485,814.93,Revenue,FCC Environment Services (UK) Ltd,131612
South Ribble Council,http://statistics.data.gov.uk/doc/local-authority/30UN,Area 2 - Waste Transport/Eastern & Central Teams,External Contractors Charges,4570,WEEE COLLECTIONS  FEBRUARY 2017,17/03/2017,0000430485,304.90,Revenue,FCC Environment Services (UK) Ltd,131612
South Ribble Council,http://statistics.data.gov.uk/doc/local-authority/30UN,Area 2 - Waste Transport/Eastern & Central Teams,External Contractors Charges,4570,CLINICAL WASTE COLLECTIONS  FEBRUARY 2017,17/03/2017,0000430485,519.28,Revenue,FCC Environment Services (UK) Ltd,131612
South Ribble Council,http://statistics.data.gov.uk/doc/local-authority/30UN,Area 2 - Waste Transport/Eastern & Central Teams,External Contractors Charges,4570,ADDITIONAL PROPERTIES  FEBRUARY 2017,17/03/2017,0000430485,647.91,Revenue,FCC Environment Services (UK) Ltd,131612
South Ribble Council,http://statistics.data.gov.uk/doc/local-authority/30UN,Area 2 - Waste Transport/Eastern & Central Teams,External Contractors Charges,4570,REPLACEMENT BINS  FEBRUARY 2017,17/03/2017,0000430485,"5,000.00",Revenue,FCC Environment Services (UK) Ltd,131612
South Ribble Council,http://statistics.data.gov.uk/doc/local-authority/30UN,Area 2 - Waste Transport/Eastern & Central Teams,Balance Sheet,0030,retention ref,17/03/2017,0000430485,"-2,334.79",Revenue,FCC Environment Services (UK) Ltd,131612
South Ribble Council,http://statistics.data.gov.uk/doc/local-authority/30UN,Area 2 - Waste Transport/Eastern & Central Teams,Balance Sheet,0030,retention coll,17/03/2017,0000430485,"-3,298.00",Revenue,FCC Environment Services (UK) Ltd,131612
South Ribble Council,http://statistics.data.gov.uk/doc/local-authority/30UN,Area 2 - Waste Transport/Eastern & Central Teams,External Contractors Charges,4570,ADDITIONAL CLINICAL WASTE COLLECTIONS FEBRUARY 2017,22/03/2017,0000430698,438.60,Revenue,FCC Environment Services (UK) Ltd,131612
South Ribble Council,http://statistics.data.gov.uk/doc/local-authority/30UN,Area 2 - Waste Transport/Eastern & Central Teams,Balance Sheet,0030,retention,22/03/2017,0000430698,-21.93,Revenue,FCC Environment Services (UK) Ltd,131612
South Ribble Council,http://statistics.data.gov.uk/doc/local-authority/30UN,Housing,Cap Grant- Improve Grants,C570,DFG works to bathroom at ADDRESS REDACTED Cost 3720.00,17/03/2017,0000430684,"3,720.00",Revenue,G McGAVOCK LTD,131311
South Ribble Council,http://statistics.data.gov.uk/doc/local-authority/30UN,Area 3 - Parks/Leyland East West,Grounds Maint Cntrctrs Chgs,4657,Formal Garden Gates - WORDEN PARK MINOR REPAIRS TO GATES AND RESIN FIXING POST TO FOUNDATION.,10/03/2017,0000430541,250.00,Revenue,G S F (Lancs) Ltd,131474
South Ribble Council,http://statistics.data.gov.uk/doc/local-authority/30UN,Regeneration,Printing,4125,"15 x Xerox ref 003R90996 90gsm 841 x 110m 17.50 per roll  6 x Xerox ref 003R90995 90gsm 594 x 110m 14.75 per roll",31/03/2017,0000430925,351.00,Revenue,GCS UK ASSOCIATES LTD,130671
South Ribble Council,http://statistics.data.gov.uk/doc/local-authority/30UN,Area 1 - Penwortham Western Parishes,Materials General,4040,Phoenix Recycled Material Seat complete with BLACK Enviropol slats and concrete fixing bolts,01/03/2017,0000430078,416.69,Revenue,GLASDON UK LTD,130953
South Ribble Council,http://statistics.data.gov.uk/doc/local-authority/30UN,Shared Financial Services,Financial,4816,Financial,31/03/2017,0000431102,"1,207.82",Revenue,Global Color Research,131431
South Ribble Council,http://statistics.data.gov.uk/doc/local-authority/30UN,Shared Financial Services,Financial,4816,Financial,31/03/2017,0000431102,7.00,Revenue,Global Color Research,131431
South Ribble Council,http://statistics.data.gov.uk/doc/local-authority/30UN,Housing,Contributions,4730,Gas servicing for winter warmth scheme,03/03/2017,0000430329,750.00,Revenue,GOS Heating Ltd,131387
South Ribble Council,http://statistics.data.gov.uk/doc/local-authority/30UN,Housing,Contributions,4730,Gas appliance repairs for winter warmth scheme,03/03/2017,0000430330,"1,869.84",Revenue,GOS Heating Ltd,131387
South Ribble Council,http://statistics.data.gov.uk/doc/local-authority/30UN,Shared Assurance Services,Peripherals,4243,To purchase the GRACE Risk Management Software annual contract.,29/03/2017,0000430983,"2,995.00",Revenue,Grace Governance Solutions Ltd,132207
South Ribble Council,http://statistics.data.gov.uk/doc/local-authority/30UN,Shared Assurance Services,Peripherals,4243,To purchase CONNIE Business Continuity Software annual contract.,29/03/2017,0000430983,395.00,Revenue,Grace Governance Solutions Ltd,132207
South Ribble Council,http://statistics.data.gov.uk/doc/local-authority/30UN,Shared Assurance Services,Peripherals,4243,To purchase EMMA Emergency Planning Software annual contract.,29/03/2017,0000430983,395.00,Revenue,Grace Governance Solutions Ltd,132207
South Ribble Council,http://statistics.data.gov.uk/doc/local-authority/30UN,Shared Assurance Services,Peripherals,4243,Grace Configuration and Training Day for Thursday 9th March 2016.,29/03/2017,0000430984,300.00,Revenue,Grace Governance Solutions Ltd,132207
South Ribble Council,http://statistics.data.gov.uk/doc/local-authority/30UN,Shared Assurance Services,Peripherals,4243,1 day training/configuration regarding CONNIE Thursday 16/3.,29/03/2017,0000430985,300.00,Revenue,Grace Governance Solutions Ltd,132207
South Ribble Council,http://statistics.data.gov.uk/doc/local-authority/30UN,Shared Financial Services,Professional Fees,4512,Main Audit Fee for 2016/17,22/03/2017,0000430713,"10,981.00",Revenue,Grant Thornton UK LLP,130718
South Ribble Council,http://statistics.data.gov.uk/doc/local-authority/30UN,Property Services,Rep & Maint Fixed Plant,2035,"To supply, install & commission the intruder alarm system at Leyland market as per your quotation  ref 21808.",08/03/2017,0000430374,"1,210.80",Revenue,Grantfen Fire & Security Ltd,131572
South Ribble Council,http://statistics.data.gov.uk/doc/local-authority/30UN,Revenues Plus,Balance Sheet,0001,Balance Sheet,08/03/2017,0000430523,475.33,Revenue,Grantfen Fire & Security Ltd,131572
South Ribble Council,http://statistics.data.gov.uk/doc/local-authority/30UN,Revenues Plus,Balance Sheet,0001,Balance Sheet,08/03/2017,0000430524,324.40,Revenue,Grantfen Fire & Security Ltd,131572
South Ribble Council,http://statistics.data.gov.uk/doc/local-authority/30UN,Area 3 - Parks/Leyland East West,Grounds Maint Cntrctrs Chgs,4657,280m2 - Repair and cover with childsplay carpet damaged area of existing wet pour safery surfacing under teen at King George,22/03/2017,0000430321,"8,960.00",Revenue,GROUNDWORK LEISURE SERVICES LTD,130104
South Ribble Council,http://statistics.data.gov.uk/doc/local-authority/30UN,Area 2 - Waste Transport/Eastern & Central Teams,Materials General,4040,4 sets disc pads BIN539,08/03/2017,0000430412,340.00,Revenue,H & J SERVICES LTD,00114446
South Ribble Council,http://statistics.data.gov.uk/doc/local-authority/30UN,Area 2 - Waste Transport/Eastern & Central Teams,Materials General,4040,VARIOUS FILTERS - 3508,08/03/2017,0000430414,360.25,Revenue,H & J SERVICES LTD,00114446
South Ribble Council,http://statistics.data.gov.uk/doc/local-authority/30UN,Area 2 - Waste Transport/Eastern & Central Teams,External Contractors Charges,4570,6 DISC PADS - BIN 539 - GA,10/03/2017,0000430525,510.00,Revenue,H & J SERVICES LTD,00114446
South Ribble Council,http://statistics.data.gov.uk/doc/local-authority/30UN,Area 2 - Waste Transport/Eastern & Central Teams,Materials General,4040,VARIOUS FILTERS,15/03/2017,0000430579,392.27,Revenue,H & J SERVICES LTD,00114446
South Ribble Council,http://statistics.data.gov.uk/doc/local-authority/30UN,Area 2 - Waste Transport/Eastern & Central Teams,Materials General,4040,2 SWITCHES BIN 372,15/03/2017,0000430600,552.18,Revenue,H & J SERVICES LTD,00114446
South Ribble Council,http://statistics.data.gov.uk/doc/local-authority/30UN,Area 2 - Waste Transport/Eastern & Central Teams,Materials General,4040,"1 SWITCH - BIN 369, 1 SWITCH - BIN 376 - GA",22/03/2017,0000430787,307.26,Revenue,H & J SERVICES LTD,00114446
South Ribble Council,http://statistics.data.gov.uk/doc/local-authority/30UN,Area 2 - Waste Transport/Eastern & Central Teams,Materials General,4040,"1 SWITCH - BIN 369, 1 SWITCH - BIN 376 - GA",24/03/2017,0000430850,276.09,Revenue,H & J SERVICES LTD,00114446
South Ribble Council,http://statistics.data.gov.uk/doc/local-authority/30UN,Area 2 - Waste Transport/Eastern & Central Teams,Materials General,4040,Filters for Stores,31/03/2017,0000431003,361.95,Revenue,H & J SERVICES LTD,00114446
South Ribble Council,http://statistics.data.gov.uk/doc/local-authority/30UN,Housing,Cap Grant- Improve Grants,C570,DFG Works to property as per quote at ADDRESS REDACTED Cost of work - 3693.00,31/03/2017,0000431104,"3,693.00",Revenue,Hall Building Contractors Ltd,131423
South Ribble Council,http://statistics.data.gov.uk/doc/local-authority/30UN,Neighbourhood Admin & Support,Vehicle Running Costs,3134,1500 LITRES GAS OIL (@ 0.5101 per litre),29/03/2017,0000430915,766.95,Revenue,Hall Fuels trading name of WFL (UK) Ltd,00116758
South Ribble Council,http://statistics.data.gov.uk/doc/local-authority/30UN,Neighbourhood Admin & Support,Vehicle Running Costs,3132,"15,000 LITRES DIESEL (@ 0.9572 per litre)",29/03/2017,0000430923,"14,423.92",Revenue,Hall Fuels trading name of WFL (UK) Ltd,00116758
South Ribble Council,http://statistics.data.gov.uk/doc/local-authority/30UN,Information Services,Peripherals,4248,HFX System Maintenance Support Contract for period 03/04/17 - 02/04/18,03/03/2017,0000430320,"3,416.44",Revenue,HFX LTD,00023728
South Ribble Council,http://statistics.data.gov.uk/doc/local-authority/30UN,HR & Communications,Advertising,4848,Advertisement details,03/03/2017,0000430351,620.80,Revenue,HIBU Re:YELL LTD,00056177
South Ribble Council,http://statistics.data.gov.uk/doc/local-authority/30UN,Legal,Capital Expenditure,C234,"AQUISITION OF LAND AT MOSS SIDE WAY, MOSS SIDE, LEYLAND FROM HOMES AND COMMUNITIES AGENCY",31/03/2017,0000429116,"6,500.00",Revenue,HOMES AND COMMUNITIES AGENCY (HCA),130009
South Ribble Council,http://statistics.data.gov.uk/doc/local-authority/30UN,HR & Communications,Training Expense-Course Fees,1402,NAME REDACTED 28.2.2017  UNLOCKING CONSTRUCTION BASIC TECHNIQUES COURSE MANCHESTER,17/03/2017,0000430734,250.00,Revenue,HOUSING QUALITY NETWORK,00119810
South Ribble Council,http://statistics.data.gov.uk/doc/local-authority/30UN,HR & Communications,Training Expense-Course Fees,1402,Enforcement Academy Enforcement knowledge and best practice 4 x SBRC employees: NAMES REDACTED ,15/03/2017,0000430625,"3,400.00",Revenue,Hyndburn Borough Council,131625
South Ribble Council,http://statistics.data.gov.uk/doc/local-authority/30UN,HR & Communications,Advertising,4848,"Photos for the following  Full day photography for Forward Publication in Longton, Penwortham & Leyland (Including 44 miles at",10/03/2017,0000430504,714.85,Revenue,IAN ROBINSON,132041
South Ribble Council,http://statistics.data.gov.uk/doc/local-authority/30UN,Scrutiny,Subs to Statutory Bodies,4720,Subscription to LG Inform Plus: A Premium Information Service for Local Authorities.From 1st April  2017to 31st March2018,22/03/2017,0000430783,809.00,Revenue,IDEA IMPROVEMENT & DEV AGENCY for LOCAL GOV,00012111
South Ribble Council,http://statistics.data.gov.uk/doc/local-authority/30UN,HR & Communications,Agency Fees,1121,FOR WORK CARRIED OUT BY NAME REDACTED  THROUGHOUT 2017,03/03/2017,0000430281,"7,992.78",Revenue,IE RECRUITMENT,132140
South Ribble Council,http://statistics.data.gov.uk/doc/local-authority/30UN,HR & Communications,Agency Fees,1121,FOR WORK CARRIED OUT BY NAME REDACTED  THROUGHOUT 2017,03/03/2017,0000430319,"5,926.88",Revenue,IE RECRUITMENT,132140
South Ribble Council,http://statistics.data.gov.uk/doc/local-authority/30UN,Revenues Plus,Professional Fees,4510,RV Finder - ADDRESS REDACTED,24/03/2017,0000430874,400.00,Revenue,Inform CPI Ltd,131666
South Ribble Council,http://statistics.data.gov.uk/doc/local-authority/30UN,Information Services,Peripherals,4245,2 x 5 pack KIT-LTO7 Tape Media @ 399.05 each,17/03/2017,0000430693,798.10,Revenue,INSIGHT UK,00120744
South Ribble Council,http://statistics.data.gov.uk/doc/local-authority/30UN,Information Services,Peripherals,4241,Cisco maintenance renewal for period 01/03/17 - 28/02/18,01/03/2017,0000430282,"4,606.92",Revenue,INTRINSIC TECHNOLOGY LTD,130439
South Ribble Council,http://statistics.data.gov.uk/doc/local-authority/30UN,Healthy Communities,Other Misc,4851,Tennis Coaching in various primary schools;,03/03/2017,0000430298,700.00,Revenue,Jacqueline Lowe,132083
South Ribble Council,http://statistics.data.gov.uk/doc/local-authority/30UN,Healthy Communities,Other Misc,4851,Tennis Coaching in various primary schools;,22/03/2017,0000430810,887.50,Revenue,Jacqueline Lowe,132083
South Ribble Council,http://statistics.data.gov.uk/doc/local-authority/30UN,Property Services,Rep & Maint Premises,2020,undertake the repairs to boiler at Worden Park Theatre boiler house as per quote detailed in the e-mail from NAME REDACTED,01/03/2017,0000430230,591.00,Revenue,JAMES MERCER GROUP LTD,00028587
South Ribble Council,http://statistics.data.gov.uk/doc/local-authority/30UN,Area 3 - Parks/Leyland East West,Materials General,4040,7no 1.2 POSTS - 53no 0.9m POSTS -  2no 1.8M RAILS AND 24no 2.7M RAILS ALL IN DRIED OAK AS PER QUOTE DATED ,10/03/2017,0000430432,"5,683.00",Revenue,JOHN HY MAYOR & SONS LTD,00028176
South Ribble Council,http://statistics.data.gov.uk/doc/local-authority/30UN,Regeneration,Capital Expenditure,C230,improved landscape works carried out in Walmer Bridge,31/03/2017,0000431105,"46,838.01",Revenue,John Wade Groundworks Ltd t/a Wade Group,131568
South Ribble Council,http://statistics.data.gov.uk/doc/local-authority/30UN,Planning,Advertising,4841,Press notices for planning applications,10/03/2017,0000430130,656.25,Revenue,JOHNSTON PUBLISHING (NORTH WEST),00011345
South Ribble Council,http://statistics.data.gov.uk/doc/local-authority/30UN,Revenues Plus,Advertising,4841,Council Tax  Advert 2017/18 - 1 insert in the Lancashire Evening Post  on 9 March 2017,15/03/2017,0000430574,"1,080.00",Revenue,JOHNSTON PUBLISHING (NORTH WEST),00011345
South Ribble Council,http://statistics.data.gov.uk/doc/local-authority/30UN,Planning,Advertising,4841,Press notices for planning applications,22/03/2017,0000430686,540.00,Revenue,JOHNSTON PUBLISHING (NORTH WEST),00011345
South Ribble Council,http://statistics.data.gov.uk/doc/local-authority/30UN,Planning,Advertising,4841,Press notices for planning applications,22/03/2017,0000430687,567.00,Revenue,JOHNSTON PUBLISHING (NORTH WEST),00011345
South Ribble Council,http://statistics.data.gov.uk/doc/local-authority/30UN,Planning,Advertising,4841,Press notices for planning applications,29/03/2017,0000430757,567.00,Revenue,JOHNSTON PUBLISHING (NORTH WEST),00011345
South Ribble Council,http://statistics.data.gov.uk/doc/local-authority/30UN,Planning,Advertising,4841,Press notices for planning applications,29/03/2017,0000430811,513.00,Revenue,JOHNSTON PUBLISHING (NORTH WEST),00011345
South Ribble Council,http://statistics.data.gov.uk/doc/local-authority/30UN,Planning,Advertising,4841,Press notices for planning applications,29/03/2017,0000430858,567.00,Revenue,JOHNSTON PUBLISHING (NORTH WEST),00011345
South Ribble Council,http://statistics.data.gov.uk/doc/local-authority/30UN,Environmental Health,Advertising,4841,Advert Ref Number:  NMC253296 Please publish the above Fees and Charges Notice in the Lancashire Evening Post on,31/03/2017,0000431042,"2,160.00",Revenue,JOHNSTON PUBLISHING (NORTH WEST),00011345
South Ribble Council,http://statistics.data.gov.uk/doc/local-authority/30UN,Area 2 - Waste Transport/Eastern & Central Teams,External Contractors Charges,4570,SPEC REPAIR RV14 DTZ JFC8285,10/03/2017,0000430502,731.56,Revenue,JOHNSTON SWEEPERS LTD,00058926
South Ribble Council,http://statistics.data.gov.uk/doc/local-authority/30UN,Development Enterprise & Comm Mgnt,Other Misc,4851,"Provision of Hockey Coaching as part of the �Active Schools� coaching programme Total Cost 1300",10/03/2017,0000430192,250.00,Revenue,Josephine Rice,131841
South Ribble Council,http://statistics.data.gov.uk/doc/local-authority/30UN,Area 3 - Parks/Leyland East West,Grounds Maint Cntrctrs Chgs,4657,GREEN FLAG APPLICATIONS FOR 2017/18,22/03/2017,0000430743,993.00,Revenue,KEEP BRITAIN TIDY,00115979
South Ribble Council,http://statistics.data.gov.uk/doc/local-authority/30UN,Property Services,Professional Fees,4510,Valuation of  Hulmes Mill Site following site investigation report - as per discussions with NAMES REDACTED,24/03/2017,0000430871,600.00,Revenue,Keppie Massie,131948
South Ribble Council,http://statistics.data.gov.uk/doc/local-authority/30UN,Property Services,Professional Fees,4510,Valuation of  Hulmes Mille Site following site investigations as per  discussions with NAMES REDACTED,24/03/2017,0000430871,400.00,Revenue,Keppie Massie,131948
South Ribble Council,http://statistics.data.gov.uk/doc/local-authority/30UN,Information Services,Peripherals,4246,CRM Analysis as per quote,17/03/2017,0000430695,"2,250.00",Revenue,Keytech Managed Solutions Ltd,132196
South Ribble Council,http://statistics.data.gov.uk/doc/local-authority/30UN,Environmental Health,Materials General,4041,"Neosorexa Gold 25KG	NEOGOO25K	62.4      x	2Deadline Rat Blocks	DEADL120G	42.15    x     3 AF Advance Mouse",31/03/2017,0000430986,504.43,Revenue,KILLGERM CHEMICALS LTD,00025894
South Ribble Council,http://statistics.data.gov.uk/doc/local-authority/30UN,Property Services,Rep & Maint Premises,2020,2016 / 2017 contract for water hygiene monitoring at Gregson Lane Pavilion,24/03/2017,0000430872,46.00,Revenue,KNOWSLEY BLD & ENVIRONMENTAL SERVICES LT,00072656
South Ribble Council,http://statistics.data.gov.uk/doc/local-authority/30UN,Property Services,Rep & Maint Premises,2020,2016 / 2017 contract for water hygiene monitoring at Hern Avenue Pavilion,24/03/2017,0000430872,46.00,Revenue,KNOWSLEY BLD & ENVIRONMENTAL SERVICES LT,00072656
South Ribble Council,http://statistics.data.gov.uk/doc/local-authority/30UN,Property Services,Rep & Maint Premises,2020,2016 / 2017 contract for water hygiene monitoring at Higher Walton Pavilion,24/03/2017,0000430872,46.00,Revenue,KNOWSLEY BLD & ENVIRONMENTAL SERVICES LT,00072656
South Ribble Council,http://statistics.data.gov.uk/doc/local-authority/30UN,Property Services,Rep & Maint Premises,2020,2016 / 2017 contract for water hygiene monitoring at Holme Pavilion,24/03/2017,0000430872,46.00,Revenue,KNOWSLEY BLD & ENVIRONMENTAL SERVICES LT,00072656
South Ribble Council,http://statistics.data.gov.uk/doc/local-authority/30UN,Property Services,Rep & Maint Premises,2020,2016 / 2017 contract for water hygiene monitoring at Hutton Pavilion,24/03/2017,0000430872,46.00,Revenue,KNOWSLEY BLD & ENVIRONMENTAL SERVICES LT,00072656
South Ribble Council,http://statistics.data.gov.uk/doc/local-authority/30UN,Property Services,Rep & Maint Premises,2020,2016 / 2017 contract for water hygiene monitoring at Kingsfold pavilion,24/03/2017,0000430872,53.50,Revenue,KNOWSLEY BLD & ENVIRONMENTAL SERVICES LT,00072656
South Ribble Council,http://statistics.data.gov.uk/doc/local-authority/30UN,Property Services,Rep & Maint Premises,2020,2016 / 2017 contract for water hygiene monitoring at sports pavilions Worden Park (formerly long pavilion),24/03/2017,0000430872,46.00,Revenue,KNOWSLEY BLD & ENVIRONMENTAL SERVICES LT,00072656
South Ribble Council,http://statistics.data.gov.uk/doc/local-authority/30UN,Property Services,Rep & Maint Premises,2020,2016 / 2017 contract for water hygiene monitoring at Moss Side Pavilion,24/03/2017,0000430872,53.50,Revenue,KNOWSLEY BLD & ENVIRONMENTAL SERVICES LT,00072656
South Ribble Council,http://statistics.data.gov.uk/doc/local-authority/30UN,Property Services,Rep & Maint Premises,2020,2016 / 2017 contract for water hygiene monitoring at Much Hoole Pavilion,24/03/2017,0000430872,46.00,Revenue,KNOWSLEY BLD & ENVIRONMENTAL SERVICES LT,00072656
South Ribble Council,http://statistics.data.gov.uk/doc/local-authority/30UN,Property Services,Rep & Maint Premises,2020,2016 / 2017 contract for water hygiene monitoring at Penwortham Holme,24/03/2017,0000430872,46.00,Revenue,KNOWSLEY BLD & ENVIRONMENTAL SERVICES LT,00072656
South Ribble Council,http://statistics.data.gov.uk/doc/local-authority/30UN,Property Services,Rep & Maint Premises,2020,2016 / 2017 contract for water hygiene monitoring at St Cuthbert`s Pavilion,24/03/2017,0000430872,46.00,Revenue,KNOWSLEY BLD & ENVIRONMENTAL SERVICES LT,00072656
South Ribble Council,http://statistics.data.gov.uk/doc/local-authority/30UN,Property Services,Rep & Maint Premises,2020,2016 / 2017 contract for water hygiene monitoring at Withy Grove Pavilion,24/03/2017,0000430872,53.50,Revenue,KNOWSLEY BLD & ENVIRONMENTAL SERVICES LT,00072656
South Ribble Council,http://statistics.data.gov.uk/doc/local-authority/30UN,Property Services,Rep & Maint Premises,2020,2016 / 2017 contract for water hygiene monitoring at Holland House Farm Pavilion,24/03/2017,0000430872,46.00,Revenue,KNOWSLEY BLD & ENVIRONMENTAL SERVICES LT,00072656
South Ribble Council,http://statistics.data.gov.uk/doc/local-authority/30UN,Property Services,Rep & Maint Premises,2020,"2016 / 2017 contract for water hygiene monitoring at The Derby Wing, Worden Park",24/03/2017,0000430872,43.50,Revenue,KNOWSLEY BLD & ENVIRONMENTAL SERVICES LT,00072656
South Ribble Council,http://statistics.data.gov.uk/doc/local-authority/30UN,Property Services,Rep & Maint Premises,2020,2016 / 2017 contract for water hygiene monitoring at Carr Street Community Centre,24/03/2017,0000430872,43.50,Revenue,KNOWSLEY BLD & ENVIRONMENTAL SERVICES LT,00072656
South Ribble Council,http://statistics.data.gov.uk/doc/local-authority/30UN,Property Services,Rep & Maint Premises,2020,2016 / 2017 contract for water hygiene monitoring at Kingsfold Community Centre,24/03/2017,0000430872,43.50,Revenue,KNOWSLEY BLD & ENVIRONMENTAL SERVICES LT,00072656
South Ribble Council,http://statistics.data.gov.uk/doc/local-authority/30UN,Property Services,Rep & Maint Premises,2020,2016 / 2017 contract for water hygiene monitoring at Higher Walton Community Centre,24/03/2017,0000430872,43.50,Revenue,KNOWSLEY BLD & ENVIRONMENTAL SERVICES LT,00072656
South Ribble Council,http://statistics.data.gov.uk/doc/local-authority/30UN,Property Services,Rep & Maint Premises,2020,2016 / 2017 contract for water hygiene monitoring at Moss Side Community Centre,24/03/2017,0000430872,43.50,Revenue,KNOWSLEY BLD & ENVIRONMENTAL SERVICES LT,00072656
South Ribble Council,http://statistics.data.gov.uk/doc/local-authority/30UN,Property Services,Rep & Maint Premises,2020,2016 / 2017 contract for water hygiene monitoring at Worden Arts & Craft Centre,24/03/2017,0000430872,58.50,Revenue,KNOWSLEY BLD & ENVIRONMENTAL SERVICES LT,00072656
South Ribble Council,http://statistics.data.gov.uk/doc/local-authority/30UN,Property Services,Rep & Maint Premises,2020,2016 /2017 contract for water hygiene monitoring at Leyland Market,24/03/2017,0000430872,36.00,Revenue,KNOWSLEY BLD & ENVIRONMENTAL SERVICES LT,00072656
South Ribble Council,http://statistics.data.gov.uk/doc/local-authority/30UN,Property Services,Rep & Maint Premises,2020,2016 / 2017  contract for water hygiene monitoring at Hurst Grange Park,24/03/2017,0000430872,43.50,Revenue,KNOWSLEY BLD & ENVIRONMENTAL SERVICES LT,00072656
South Ribble Council,http://statistics.data.gov.uk/doc/local-authority/30UN,Property Services,Rep & Maint Premises,2020,"2016 / 2017 contract for water hygiene monitoring at Crossroads toilets, Worden Park",24/03/2017,0000430872,23.00,Revenue,KNOWSLEY BLD & ENVIRONMENTAL SERVICES LT,00072656
South Ribble Council,http://statistics.data.gov.uk/doc/local-authority/30UN,Property Services,Rep & Maint Premises,2020,2016 / 2017 contract for water hygiene monitoring at Hope Terrace Public toilets,24/03/2017,0000430872,23.00,Revenue,KNOWSLEY BLD & ENVIRONMENTAL SERVICES LT,00072656
South Ribble Council,http://statistics.data.gov.uk/doc/local-authority/30UN,Property Services,Rep & Maint Premises,2020,2016 / 2017 contract for water hygiene monitoring at Longton Brick Croft,24/03/2017,0000430872,26.00,Revenue,KNOWSLEY BLD & ENVIRONMENTAL SERVICES LT,00072656
South Ribble Council,http://statistics.data.gov.uk/doc/local-authority/30UN,Property Services,Rep & Maint Premises,2020,"2016 / 2017 contract for water hygiene monitoring at Playground toilets, Worden Park",24/03/2017,0000430872,23.00,Revenue,KNOWSLEY BLD & ENVIRONMENTAL SERVICES LT,00072656
South Ribble Council,http://statistics.data.gov.uk/doc/local-authority/30UN,Property Services,Rep & Maint Premises,2020,2016 / 2017 contract for water hygiene monitoring at SR Museum & Exhibition Centre,24/03/2017,0000430872,26.00,Revenue,KNOWSLEY BLD & ENVIRONMENTAL SERVICES LT,00072656
South Ribble Council,http://statistics.data.gov.uk/doc/local-authority/30UN,Property Services,Rep & Maint Premises,2020,2016 / 2017 contract for water hygiene monitoring at Withy Grove public toilets,24/03/2017,0000430872,23.00,Revenue,KNOWSLEY BLD & ENVIRONMENTAL SERVICES LT,00072656
South Ribble Council,http://statistics.data.gov.uk/doc/local-authority/30UN,Property Services,Rep & Maint Premises,2020,"2016 / 2017 contract for water hygiene monitoring at the Civic Centre, Leyland",24/03/2017,0000430872,184.50,Revenue,KNOWSLEY BLD & ENVIRONMENTAL SERVICES LT,00072656
South Ribble Council,http://statistics.data.gov.uk/doc/local-authority/30UN,Property Services,Rep & Maint Premises,2020,2016 / 2017 contract for water hygiene monitoring at Moss Side Depot,24/03/2017,0000430872,112.50,Revenue,KNOWSLEY BLD & ENVIRONMENTAL SERVICES LT,00072656
South Ribble Council,http://statistics.data.gov.uk/doc/local-authority/30UN,Property Services,Rep & Maint Premises,2020,2016 / 2017 contract for water hygiene monitoring at Longton Pavilion,24/03/2017,0000430872,46.00,Revenue,KNOWSLEY BLD & ENVIRONMENTAL SERVICES LT,00072656
South Ribble Council,http://statistics.data.gov.uk/doc/local-authority/30UN,Building Control,Professional Fees,4510,LABC Service Fee 2017/18,31/03/2017,0000430509,"1,951.92",Revenue,LABC,00119218
South Ribble Council,http://statistics.data.gov.uk/doc/local-authority/30UN,Area 2 - Waste Transport/Eastern & Central Teams,Materials General,4040,1 DRUM 5W/30 ENGINE OIL,01/03/2017,0000430195,256.71,Revenue,LANCASHIRE OILS LTD,131167
South Ribble Council,http://statistics.data.gov.uk/doc/local-authority/30UN,Area 2 - Waste Transport/Eastern & Central Teams,Materials General,4040,2 barrels of TFR  2 empty IBC�s,24/03/2017,0000430843,260.90,Revenue,LANCASHIRE OILS LTD,131167
South Ribble Council,http://statistics.data.gov.uk/doc/local-authority/30UN,Area 2 - Waste Transport/Eastern & Central Teams,Materials General,4040,800 LITRES HYDRAULIC OIL ( 0.49 PER LITRE),29/03/2017,0000430933,392.00,Revenue,LANCASHIRE OILS LTD,131167
South Ribble Council,http://statistics.data.gov.uk/doc/local-authority/30UN,Area 2 - Waste Transport/Eastern & Central Teams,Waste Disposal Charges,5112,January 2017 - Incineration of Clinical Waste.,31/03/2017,0000431004,604.01,Revenue,LANCASHIRE TEACHING FT,00120715
South Ribble Council,http://statistics.data.gov.uk/doc/local-authority/30UN,Area 2 - Waste Transport/Eastern & Central Teams,Waste Disposal Charges,5112,February 2017 - Incineration of Clinical Waste.,31/03/2017,0000431026,668.80,Revenue,LANCASHIRE TEACHING FT,00120715
South Ribble Council,http://statistics.data.gov.uk/doc/local-authority/30UN,Area 2 - Waste Transport/Eastern & Central Teams,External Contractors Charges,4570,Spec repair - PJ62UCH - JFC8302 - PD,29/03/2017,0000430873,"1,450.00",Revenue,Lancashire Waste Services Limited,131510
South Ribble Council,http://statistics.data.gov.uk/doc/local-authority/30UN,Housing,Cap Grant- Improve Grants,C570,DFG WORKS  Supply and Install specialist Bath at ADDRESS REDACTED,01/03/2017,0000430243,"5,839.00",Revenue,LANCS COUNTY COUNCIL,00041645
South Ribble Council,http://statistics.data.gov.uk/doc/local-authority/30UN,Area 2 - Waste Transport/Eastern & Central Teams,Contractors Charges 5,5412,"QUARTER 3 DISPOSAL FEE, LANDFILL TAX & 5% ADMIN FEE",08/03/2017,0000430348,"53,186.00",Revenue,LANCS COUNTY COUNCIL,00041645
South Ribble Council,http://statistics.data.gov.uk/doc/local-authority/30UN,Legal,Other Local Authorities,4530,LAND CHARGES - FEBRUARY 2017,29/03/2017,0000430907,"1,867.50",Revenue,LANCS COUNTY COUNCIL,00041645
South Ribble Council,http://statistics.data.gov.uk/doc/local-authority/30UN,Area 3 - Parks/Leyland East West,Capital Expenditure,C230,"PLANTING 95 TREES WITH ASSOCIATED PROTECTIVE FENCING, WORDEN PARK, LEYLAND",29/03/2017,0000429954,"11,936.00",Revenue,LANDSCAPE ENGINEERING LIMITED,130416
South Ribble Council,http://statistics.data.gov.uk/doc/local-authority/30UN,Regeneration,Other Misc,4851,installation of cycle stands and interpretation board.,31/03/2017,0000430592,"1,168.00",Revenue,LANDSCAPE ENGINEERING LIMITED,130416
South Ribble Council,http://statistics.data.gov.uk/doc/local-authority/30UN,Regeneration,Capital Expenditure,C230,HUTTON VILLAGE CAR PARK,17/03/2017,0000430688,"29,818.47",Revenue,LANDSCAPE ENGINEERING LIMITED,130416
South Ribble Council,http://statistics.data.gov.uk/doc/local-authority/30UN,Regeneration,Capital Expenditure,C234,Carry out works to create central garden at ADDRESS REDACTED. All as per the quotation submitted via The Chest,17/03/2017,0000430727,"35,920.21",Revenue,LANDSCAPE ENGINEERING LIMITED,130416
South Ribble Council,http://statistics.data.gov.uk/doc/local-authority/30UN,Legal,Publications,4142,"Contract ID: DL0030421\2
Print Renewal 2017/2018 
Invoice from 05/04/17 to 04/04/2018",24/03/2017,0000430859,"1,061.06",Revenue,LEXISNEXIS BUTTERWORTHS,00037138
South Ribble Council,http://statistics.data.gov.uk/doc/local-authority/30UN,Property Services,Advertising,4841,Leyland Market Advert as per NAME REDACTED,15/03/2017,0000430618,350.00,Revenue,LEYLAND LEADER,00091297
South Ribble Council,http://statistics.data.gov.uk/doc/local-authority/30UN,Area 2 - Waste Transport/Eastern & Central Teams,Professional Fees,4510,LARAC Membership 2017-2018,17/03/2017,0000430719,425.00,Revenue,LOCAL AUTHORITY RECYCLING (LARAC),00027834
South Ribble Council,http://statistics.data.gov.uk/doc/local-authority/30UN,Area 2 - Waste Transport/Eastern & Central Teams,Materials General,4040,"1 HUB CARRIER, 2 BOLTS - PL04 GUD - JFC8316 - AW",31/03/2017,0000431005,259.68,Revenue,LOOKERS VOLKSWAGEN (PRESTON),00090780
South Ribble Council,http://statistics.data.gov.uk/doc/local-authority/30UN,Neighbourhood Admin & Support,Operational Furniture & Equip,4010,PADLOCKS  - SQUIRE 660 TO PASS KEY 10 -,15/03/2017,0000430527,273.94,Revenue,M A C BUILDING PRODUCTS LTD,00051059
South Ribble Council,http://statistics.data.gov.uk/doc/local-authority/30UN,Customer Contact,Consultancy Fees,4541,See previous order PUR0028048 for CSE assessment in March 2017,31/03/2017,0000430960,920.00,Revenue,M ASSESSMENT SERVICES,132193
South Ribble Council,http://statistics.data.gov.uk/doc/local-authority/30UN,Housing,Cap Grant- Improve Grants,C570,DFG works to property as per quote at ADDRESS REDACTED Cost of work 4200.00,15/03/2017,0000430662,"4,200.00",Revenue,M J PARK,00087434
South Ribble Council,http://statistics.data.gov.uk/doc/local-authority/30UN,Housing,Cap Grant- Improve Grants,C570,DFG Works to property as per quote at ADDRESS REDACTED,31/03/2017,0000431106,"3,892.36",Revenue,M J PARK,00087434
South Ribble Council,http://statistics.data.gov.uk/doc/local-authority/30UN,Area 2 - Waste Transport/Eastern & Central Teams,External Contractors Charges,4570,Cylinder regrind PO16 HNA JFC7746,17/03/2017,0000430594,180.00,Revenue,M W GRASS MACHINERY,131838
South Ribble Council,http://statistics.data.gov.uk/doc/local-authority/30UN,Area 2 - Waste Transport/Eastern & Central Teams,External Contractors Charges,4570,Cylinder regrind PO16 HMU JFC7741,17/03/2017,0000430594,180.00,Revenue,M W GRASS MACHINERY,131838
South Ribble Council,http://statistics.data.gov.uk/doc/local-authority/30UN,Area 2 - Waste Transport/Eastern & Central Teams,External Contractors Charges,4570,Cylinder regrind PO16 HMY JFC7744,17/03/2017,0000430594,180.00,Revenue,M W GRASS MACHINERY,131838
South Ribble Council,http://statistics.data.gov.uk/doc/local-authority/30UN,Area 2 - Waste Transport/Eastern & Central Teams,External Contractors Charges,4570,Cylinder regrind PO16 HMX JFC7743,17/03/2017,0000430594,180.00,Revenue,M W GRASS MACHINERY,131838
South Ribble Council,http://statistics.data.gov.uk/doc/local-authority/30UN,Area 2 - Waste Transport/Eastern & Central Teams,External Contractors Charges,4570,Cylinder regrind PO16 HMV JFC7742,17/03/2017,0000430594,180.00,Revenue,M W GRASS MACHINERY,131838
South Ribble Council,http://statistics.data.gov.uk/doc/local-authority/30UN,Area 2 - Waste Transport/Eastern & Central Teams,External Contractors Charges,4570,Cylinder regrind PO16 HMZ JFC7745,17/03/2017,0000430594,180.00,Revenue,M W GRASS MACHINERY,131838
South Ribble Council,http://statistics.data.gov.uk/doc/local-authority/30UN,Area 2 - Waste Transport/Eastern & Central Teams,External Contractors Charges,4570,1 SPEC REPAIR PJ62 UCM JFC8242,03/03/2017,0000430185,604.25,Revenue,M WILSON COMMERCIALS LIMITED,130533
South Ribble Council,http://statistics.data.gov.uk/doc/local-authority/30UN,Area 2 - Waste Transport/Eastern & Central Teams,External Contractors Charges,4570,1 SPEC REPAIR MX04YNL JFC8347,17/03/2017,0000430438,"1,014.64",Revenue,M WILSON COMMERCIALS LIMITED,130533
South Ribble Council,http://statistics.data.gov.uk/doc/local-authority/30UN,Area 2 - Waste Transport/Eastern & Central Teams,External Contractors Charges,4570,SPEC REPAIR - PJ62UCG - JFC8400,22/03/2017,0000430800,708.11,Revenue,M WILSON COMMERCIALS LIMITED,130533
South Ribble Council,http://statistics.data.gov.uk/doc/local-authority/30UN,Area 2 - Waste Transport/Eastern & Central Teams,Materials General,4040,1 spec repair VK09AHJ JFC8430,29/03/2017,0000430919,818.54,Revenue,M WILSON COMMERCIALS LIMITED,130533
South Ribble Council,http://statistics.data.gov.uk/doc/local-authority/30UN,Housing,Cap Grant- Improve Grants,C570,DFG works to bathroom at ADDRESS REDACTED - 50% of total cost,08/03/2017,0000430098,"1,240.00",Revenue,MAHONEY CONTRACTORS LTD,131271
South Ribble Council,http://statistics.data.gov.uk/doc/local-authority/30UN,Property Services,Rep & Maint Premises,2020,2016 / 2017 contract for gutter inspection at Moss Side Depot,10/03/2017,0000430453,181.50,Revenue,MAINCOAT LTD,00099244
South Ribble Council,http://statistics.data.gov.uk/doc/local-authority/30UN,Property Services,Rep & Maint Premises,2020,2016 / 2017 contract for gutter inspection at Leyland Market,10/03/2017,0000430453,107.50,Revenue,MAINCOAT LTD,00099244
South Ribble Council,http://statistics.data.gov.uk/doc/local-authority/30UN,Property Services,Rep & Maint Premises,2020,2016 / 2017 contract for gutter inspection at Bamber Bridge Community Centre,10/03/2017,0000430453,89.00,Revenue,MAINCOAT LTD,00099244
South Ribble Council,http://statistics.data.gov.uk/doc/local-authority/30UN,Property Services,Rep & Maint Premises,2020,2016 / 2017 contract for gutter inspection at Higher Walton Community Centre,10/03/2017,0000430453,89.00,Revenue,MAINCOAT LTD,00099244
South Ribble Council,http://statistics.data.gov.uk/doc/local-authority/30UN,Property Services,Rep & Maint Premises,2020,2016 / 2017 contract for gutter inspection at Moss Side Community Centre,10/03/2017,0000430453,89.00,Revenue,MAINCOAT LTD,00099244
South Ribble Council,http://statistics.data.gov.uk/doc/local-authority/30UN,Property Services,Rep & Maint Premises,2020,2016 / 2017 contract for gutter inspection at Leyland Museum,10/03/2017,0000430453,89.00,Revenue,MAINCOAT LTD,00099244
South Ribble Council,http://statistics.data.gov.uk/doc/local-authority/30UN,Property Services,Rep & Maint Premises,2020,2016 / 2017 contract for gutter inspection at Longton Brickcroft,10/03/2017,0000430453,107.50,Revenue,MAINCOAT LTD,00099244
South Ribble Council,http://statistics.data.gov.uk/doc/local-authority/30UN,Property Services,Rep & Maint Premises,2020,2016 / 2017 contract for gutter inspection at Leyland Leisure Centre,10/03/2017,0000430453,181.50,Revenue,MAINCOAT LTD,00099244
South Ribble Council,http://statistics.data.gov.uk/doc/local-authority/30UN,Property Services,Rep & Maint Premises,2020,2016 / 2017 contract for gutter inspection at Bamber Bridge Leisure Centre,10/03/2017,0000430453,181.50,Revenue,MAINCOAT LTD,00099244
South Ribble Council,http://statistics.data.gov.uk/doc/local-authority/30UN,Property Services,Rep & Maint Premises,2020,2016 / 2017 contract for gutter inspection at Penwortham Leisure Centre,10/03/2017,0000430453,181.50,Revenue,MAINCOAT LTD,00099244
South Ribble Council,http://statistics.data.gov.uk/doc/local-authority/30UN,Property Services,Rep & Maint Premises,2020,"2016 / 2017 contract for gutter inspection at the Tennis Centre, Bamber Bridge",10/03/2017,0000430453,181.50,Revenue,MAINCOAT LTD,00099244
South Ribble Council,http://statistics.data.gov.uk/doc/local-authority/30UN,Property Services,Rep & Maint Premises,2020,2016 / 2017 contract for gutter inspection at the Civic Centre,10/03/2017,0000430453,89.00,Revenue,MAINCOAT LTD,00099244
South Ribble Council,http://statistics.data.gov.uk/doc/local-authority/30UN,Property Services,Rep & Maint Premises,2020,2016 / 2017 contract for gutter inspection at Carr Street Community Centre,10/03/2017,0000430453,89.00,Revenue,MAINCOAT LTD,00099244
South Ribble Council,http://statistics.data.gov.uk/doc/local-authority/30UN,Property Services,Rep & Maint Premises,2020,2016 / 2017 contract for gutter inspection at Holland House Farm,10/03/2017,0000430453,70.50,Revenue,MAINCOAT LTD,00099244
South Ribble Council,http://statistics.data.gov.uk/doc/local-authority/30UN,Property Services,Rep & Maint Premises,2020,"2016 / 2017 contract for gutter inspection at crossroads toilets, playground toilets, withy grove toilets & hope terrace toilets.",10/03/2017,0000430453,230.00,Revenue,MAINCOAT LTD,00099244
South Ribble Council,http://statistics.data.gov.uk/doc/local-authority/30UN,Property Services,Rep & Maint Premises,2020,2016 / 2017 contract for gutter inspection at Gregson Lane Sports Pavilion,10/03/2017,0000430453,70.50,Revenue,MAINCOAT LTD,00099244
South Ribble Council,http://statistics.data.gov.uk/doc/local-authority/30UN,Property Services,Rep & Maint Premises,2020,2016 / 2017 contract for gutter inspection at Hern Ave & St Cuthbert`s pavilions,10/03/2017,0000430453,70.50,Revenue,MAINCOAT LTD,00099244
South Ribble Council,http://statistics.data.gov.uk/doc/local-authority/30UN,Property Services,Rep & Maint Premises,2020,2016 / 2017 contract for gutter inspection at Withy Grove & Holme Pavilions,10/03/2017,0000430453,70.50,Revenue,MAINCOAT LTD,00099244
South Ribble Council,http://statistics.data.gov.uk/doc/local-authority/30UN,Property Services,Rep & Maint Premises,2020,2016 / 2017 contract for gutter inspection at Hurst Grange & Kingsfold pavilions,10/03/2017,0000430453,70.50,Revenue,MAINCOAT LTD,00099244
South Ribble Council,http://statistics.data.gov.uk/doc/local-authority/30UN,Property Services,Rep & Maint Premises,2020,2016 / 2017 contract for gutter inspection at Longton Pavilion,10/03/2017,0000430453,70.50,Revenue,MAINCOAT LTD,00099244
South Ribble Council,http://statistics.data.gov.uk/doc/local-authority/30UN,Property Services,Rep & Maint Premises,2020,2016 / 2017 contract for gutter inspection at Hutton Pavilion,10/03/2017,0000430453,70.50,Revenue,MAINCOAT LTD,00099244
South Ribble Council,http://statistics.data.gov.uk/doc/local-authority/30UN,Property Services,Rep & Maint Premises,2020,2016 / 2017 contract for gutter inspection at Much Hoole pavilion,10/03/2017,0000430453,70.50,Revenue,MAINCOAT LTD,00099244
South Ribble Council,http://statistics.data.gov.uk/doc/local-authority/30UN,Property Services,Rep & Maint Premises,2020,2016 / 2017 contract for gutter inspection at Worden park pavilions,10/03/2017,0000430453,70.50,Revenue,MAINCOAT LTD,00099244
South Ribble Council,http://statistics.data.gov.uk/doc/local-authority/30UN,Property Services,Rep & Maint Premises,2020,2016 / 2017 contract for gutter inspection at Moss Side Pavilion,10/03/2017,0000430453,71.50,Revenue,MAINCOAT LTD,00099244
South Ribble Council,http://statistics.data.gov.uk/doc/local-authority/30UN,Property Services,Rep & Maint Premises,2020,2016 / 2017 contract for gutter inspection at Penwortham Holme,10/03/2017,0000430453,70.50,Revenue,MAINCOAT LTD,00099244
South Ribble Council,http://statistics.data.gov.uk/doc/local-authority/30UN,Property Services,Rep & Maint Premises,2020,"2016 / 2017 contract for gutter inspection at Worden arts centre, coffee shop, derby wing (offices), bungalow (was rangers office)",10/03/2017,0000430453,289.00,Revenue,MAINCOAT LTD,00099244
South Ribble Council,http://statistics.data.gov.uk/doc/local-authority/30UN,Property Services,Rep & Maint Premises,2020,"To pick up and dispose  of adhesive, resin & paint drums from unit ADDRESS REDACTED as per quotation.",29/03/2017,0000430894,451.05,Revenue,MAINCOAT LTD,00099244
South Ribble Council,http://statistics.data.gov.uk/doc/local-authority/30UN,Property Services,Capital Expenditure,C230,Undertake work at ADDRESS REDACTED described in your quote JEH/E/6071.WTN is essential due to asbestos content.,31/03/2017,0000431089,"4,884.00",Revenue,MAINCOAT LTD,00099244
South Ribble Council,http://statistics.data.gov.uk/doc/local-authority/30UN,Property Services,Capital Expenditure,C230,materials,31/03/2017,0000431089,"3,256.00",Revenue,MAINCOAT LTD,00099244
South Ribble Council,http://statistics.data.gov.uk/doc/local-authority/30UN,Regeneration,Capital Expenditure,C234,Seeds,15/03/2017,0000430575,389.59,Revenue,MAS Seeds Ltd,132171
South Ribble Council,http://statistics.data.gov.uk/doc/local-authority/30UN,Legal,Capital Expenditure,C234,Unit 38 Momentum,31/03/2017,0000428148,"90,563.04",Revenue,MJF SSAS Trustees Ltd,132122
South Ribble Council,http://statistics.data.gov.uk/doc/local-authority/30UN,Revenues Plus,Agency Fees,1121,Agency Staff- NAME REDACTED for Feb � March 2017,17/03/2017,0000430678,850.00,Revenue,MORGAN HUNT PUBLIC SECTOR LTD,00120401
South Ribble Council,http://statistics.data.gov.uk/doc/local-authority/30UN,Revenues Plus,Agency Fees,1121,Agency Staff- NAME REDACTED for Feb � March 2017,17/03/2017,0000430694,924.75,Revenue,MORGAN HUNT PUBLIC SECTOR LTD,00120401
South Ribble Council,http://statistics.data.gov.uk/doc/local-authority/30UN,Revenues Plus,Agency Fees,1121,Agency Staff- NAME REDACTED for Feb � March 2017,24/03/2017,0000430884,925.00,Revenue,MORGAN HUNT PUBLIC SECTOR LTD,00120401
South Ribble Council,http://statistics.data.gov.uk/doc/local-authority/30UN,Revenues Plus,Agency Fees,1121,Agency Staff- NAME REDACTED for Feb � March 2017,31/03/2017,0000431101,868.75,Revenue,MORGAN HUNT PUBLIC SECTOR LTD,00120401
South Ribble Council,http://statistics.data.gov.uk/doc/local-authority/30UN,Planning,Legal,4821,Brief on Public Inquiry - Penwortham Mills,29/03/2017,0000431000,"2,750.00",Revenue,MR IAN PONTER,131194
South Ribble Council,http://statistics.data.gov.uk/doc/local-authority/30UN,Planning,Legal,4821,Refresher - Penwortham Mills,29/03/2017,0000431000,"1,200.00",Revenue,MR IAN PONTER,131194
South Ribble Council,http://statistics.data.gov.uk/doc/local-authority/30UN,Planning,Other Misc,485R,Other Misc,03/03/2017,0000429808,"1,005.00",Revenue,NAME REDACTED,132072
South Ribble Council,http://statistics.data.gov.uk/doc/local-authority/30UN,Area 2 - Waste Transport/Eastern & Central Teams,External Contractors Charges,4570,SAFETY INSPECTION - PL08MLK - JFC8183,03/03/2017,0000430312,55.50,Revenue,MUNICIPAL VEHICLE INSPECTION SERVICES LT,00096645
South Ribble Council,http://statistics.data.gov.uk/doc/local-authority/30UN,Area 2 - Waste Transport/Eastern & Central Teams,External Contractors Charges,4570,SAFETY INSPECTION - NX58FJZ -JFC8182,03/03/2017,0000430312,55.50,Revenue,MUNICIPAL VEHICLE INSPECTION SERVICES LT,00096645
South Ribble Council,http://statistics.data.gov.uk/doc/local-authority/30UN,Area 2 - Waste Transport/Eastern & Central Teams,External Contractors Charges,4570,SAFETY INSPECTION - VN10DKL - JFC8181,03/03/2017,0000430312,55.50,Revenue,MUNICIPAL VEHICLE INSPECTION SERVICES LT,00096645
South Ribble Council,http://statistics.data.gov.uk/doc/local-authority/30UN,Area 2 - Waste Transport/Eastern & Central Teams,External Contractors Charges,4570,SAFETY INSPECTION - PJ62UCM - 8180,03/03/2017,0000430312,55.50,Revenue,MUNICIPAL VEHICLE INSPECTION SERVICES LT,00096645
South Ribble Council,http://statistics.data.gov.uk/doc/local-authority/30UN,Area 2 - Waste Transport/Eastern & Central Teams,External Contractors Charges,4570,SAFETY INSPECTION - VK09AHJ - JFC8179,03/03/2017,0000430312,111.00,Revenue,MUNICIPAL VEHICLE INSPECTION SERVICES LT,00096645
South Ribble Council,http://statistics.data.gov.uk/doc/local-authority/30UN,Area 2 - Waste Transport/Eastern & Central Teams,External Contractors Charges,4570,LOLER INSPECTION - JFC8197 - PO13UUM - PD,03/03/2017,0000430312,55.50,Revenue,MUNICIPAL VEHICLE INSPECTION SERVICES LT,00096645
South Ribble Council,http://statistics.data.gov.uk/doc/local-authority/30UN,Area 2 - Waste Transport/Eastern & Central Teams,External Contractors Charges,4570,LOLER INSPECTION - JFC8339 - PN58WFZ - PD,31/03/2017,0000430999,55.50,Revenue,MUNICIPAL VEHICLE INSPECTION SERVICES LT,00096645
South Ribble Council,http://statistics.data.gov.uk/doc/local-authority/30UN,Area 2 - Waste Transport/Eastern & Central Teams,External Contractors Charges,4570,LOLER INSPECTION - JFC8340 - MV12SUA - PD,31/03/2017,0000430999,55.50,Revenue,MUNICIPAL VEHICLE INSPECTION SERVICES LT,00096645
South Ribble Council,http://statistics.data.gov.uk/doc/local-authority/30UN,Area 2 - Waste Transport/Eastern & Central Teams,External Contractors Charges,4570,LOLER INSPECTION - JFC8341 - MV12SUF - PD,31/03/2017,0000430999,55.50,Revenue,MUNICIPAL VEHICLE INSPECTION SERVICES LT,00096645
South Ribble Council,http://statistics.data.gov.uk/doc/local-authority/30UN,Area 2 - Waste Transport/Eastern & Central Teams,External Contractors Charges,4570,LOLER INSPECTION - JFC8342 - MV12SWN - PD,31/03/2017,0000430999,55.50,Revenue,MUNICIPAL VEHICLE INSPECTION SERVICES LT,00096645
South Ribble Council,http://statistics.data.gov.uk/doc/local-authority/30UN,Area 2 - Waste Transport/Eastern & Central Teams,External Contractors Charges,4570,LOLER INSPECTION - JFC8343 - FLT01 - PD,31/03/2017,0000430999,55.50,Revenue,MUNICIPAL VEHICLE INSPECTION SERVICES LT,00096645
South Ribble Council,http://statistics.data.gov.uk/doc/local-authority/30UN,HR & Communications,Training Expense-Course Fees,1402,BOOK ONE PLACE ONTO TRACTOR OPERATIONS TRAINING NAME REDACTED - 4TH JULY 17 MYERSCOUGH COLLEGE,29/03/2017,0000430963,250.00,Revenue,MYERSCOUGH COLLEGE,00026453
South Ribble Council,http://statistics.data.gov.uk/doc/local-authority/30UN,Information Services,Peripherals,4241,"PDQ Deploy licence & PDQ Inventory Enterprise licence for 1 year, 18/03/17 - 17/03/18",15/03/2017,0000430582,910.00,Revenue,MYPREMIER LTD,130091
South Ribble Council,http://statistics.data.gov.uk/doc/local-authority/30UN,Information Services,Peripherals,4241,"6 x Samsung Galaxy Tab S2 @ 344 each, plus delivery 10, as per quote ref. 167154",22/03/2017,0000430804,"2,074.00",Revenue,MYPREMIER LTD,130091
South Ribble Council,http://statistics.data.gov.uk/doc/local-authority/30UN,Area 2 - Waste Transport/Eastern & Central Teams,External Contractors Charges,4570,STEAM CLEAN - PJ62UCH - JFC8066 - (13/2),08/03/2017,0000430389,65.00,Revenue,NAYLORS TRANSPORT (LEYLAND) ltd,00114828
South Ribble Council,http://statistics.data.gov.uk/doc/local-authority/30UN,Area 2 - Waste Transport/Eastern & Central Teams,External Contractors Charges,4570,STEAM CLEAN - YP11CFM - JFC8067 - (14/2),08/03/2017,0000430389,65.00,Revenue,NAYLORS TRANSPORT (LEYLAND) ltd,00114828
South Ribble Council,http://statistics.data.gov.uk/doc/local-authority/30UN,Area 2 - Waste Transport/Eastern & Central Teams,External Contractors Charges,4570,STEAM CLEAN - VO65KRD - JFC8068 - (15/2),08/03/2017,0000430389,65.00,Revenue,NAYLORS TRANSPORT (LEYLAND) ltd,00114828
South Ribble Council,http://statistics.data.gov.uk/doc/local-authority/30UN,Area 2 - Waste Transport/Eastern & Central Teams,External Contractors Charges,4570,STEAM CLEAN - MX04YNL - JFC8069 - (16/2),08/03/2017,0000430389,65.00,Revenue,NAYLORS TRANSPORT (LEYLAND) ltd,00114828
South Ribble Council,http://statistics.data.gov.uk/doc/local-authority/30UN,Area 2 - Waste Transport/Eastern & Central Teams,External Contractors Charges,4570,STEAM CLEAN - RV14DTZ - JFC8070 - (17/2),08/03/2017,0000430389,65.00,Revenue,NAYLORS TRANSPORT (LEYLAND) ltd,00114828
South Ribble Council,http://statistics.data.gov.uk/doc/local-authority/30UN,Area 2 - Waste Transport/Eastern & Central Teams,External Contractors Charges,4570,STEAM CLEAN - PJ62UCL - JFC8071 - (17/2),08/03/2017,0000430389,75.00,Revenue,NAYLORS TRANSPORT (LEYLAND) ltd,00114828
South Ribble Council,http://statistics.data.gov.uk/doc/local-authority/30UN,Area 2 - Waste Transport/Eastern & Central Teams,External Contractors Charges,4570,STEAM CLEAN - VO65KRF - JFC8072 - (22/2),08/03/2017,0000430389,65.00,Revenue,NAYLORS TRANSPORT (LEYLAND) ltd,00114828
South Ribble Council,http://statistics.data.gov.uk/doc/local-authority/30UN,Area 2 - Waste Transport/Eastern & Central Teams,External Contractors Charges,4570,STEAM CLEAN - VO65KPX - JFC8074 - (24/2),08/03/2017,0000430389,65.00,Revenue,NAYLORS TRANSPORT (LEYLAND) ltd,00114828
South Ribble Council,http://statistics.data.gov.uk/doc/local-authority/30UN,Area 2 - Waste Transport/Eastern & Central Teams,External Contractors Charges,4570,STEAM CLEAN - VN10DKL - JFC8075 - (24/4),08/03/2017,0000430389,75.00,Revenue,NAYLORS TRANSPORT (LEYLAND) ltd,00114828
South Ribble Council,http://statistics.data.gov.uk/doc/local-authority/30UN,Area 2 - Waste Transport/Eastern & Central Teams,External Contractors Charges,4570,STEAM CLEAN - JFC8074 - VO65KPX - PD (23/2/17),08/03/2017,0000430389,65.00,Revenue,NAYLORS TRANSPORT (LEYLAND) ltd,00114828
South Ribble Council,http://statistics.data.gov.uk/doc/local-authority/30UN,Area 2 - Waste Transport/Eastern & Central Teams,External Contractors Charges,4570,STEAM CLEAN - VO65 KPZ - JFC8227.,31/03/2017,0000431075,65.00,Revenue,NAYLORS TRANSPORT (LEYLAND) ltd,00114828
South Ribble Council,http://statistics.data.gov.uk/doc/local-authority/30UN,Area 2 - Waste Transport/Eastern & Central Teams,External Contractors Charges,4570,STEAM CLEAN - PJ62 UCM - JFC8228.,31/03/2017,0000431075,65.00,Revenue,NAYLORS TRANSPORT (LEYLAND) ltd,00114828
South Ribble Council,http://statistics.data.gov.uk/doc/local-authority/30UN,Area 2 - Waste Transport/Eastern & Central Teams,External Contractors Charges,4570,STEAM CLEAN - PJ62 UCG - JFC8229.,31/03/2017,0000431075,65.00,Revenue,NAYLORS TRANSPORT (LEYLAND) ltd,00114828
South Ribble Council,http://statistics.data.gov.uk/doc/local-authority/30UN,Area 2 - Waste Transport/Eastern & Central Teams,External Contractors Charges,4570,STEAM CLEAN - MH04 GSZ - JFC8230,31/03/2017,0000431075,65.00,Revenue,NAYLORS TRANSPORT (LEYLAND) ltd,00114828
South Ribble Council,http://statistics.data.gov.uk/doc/local-authority/30UN,Area 2 - Waste Transport/Eastern & Central Teams,External Contractors Charges,4570,STEAM CLEAN - NX58 FJZ - JFC8231.,31/03/2017,0000431075,65.00,Revenue,NAYLORS TRANSPORT (LEYLAND) ltd,00114828
South Ribble Council,http://statistics.data.gov.uk/doc/local-authority/30UN,Area 2 - Waste Transport/Eastern & Central Teams,External Contractors Charges,4570,STEAM CLEAN - VO65 KRE - JFC8232,31/03/2017,0000431075,65.00,Revenue,NAYLORS TRANSPORT (LEYLAND) ltd,00114828
South Ribble Council,http://statistics.data.gov.uk/doc/local-authority/30UN,Area 2 - Waste Transport/Eastern & Central Teams,External Contractors Charges,4570,STEAM CLEAN - PO13 UUM - JFC8233.,31/03/2017,0000431075,75.00,Revenue,NAYLORS TRANSPORT (LEYLAND) ltd,00114828
South Ribble Council,http://statistics.data.gov.uk/doc/local-authority/30UN,Area 2 - Waste Transport/Eastern & Central Teams,External Contractors Charges,4570,STEAM CLEAN - YP11 CFM - JFC8234.,31/03/2017,0000431075,65.00,Revenue,NAYLORS TRANSPORT (LEYLAND) ltd,00114828
South Ribble Council,http://statistics.data.gov.uk/doc/local-authority/30UN,Property Services,Client Internal Charges,4590,"2016 / 2017 - Weekly waste removal at Leyland Market, @ 79.49 plus ad hoc pick ups as required.",10/03/2017,0000430498,386.12,Revenue,NEALES WASTE MANAGEMENT,130129
South Ribble Council,http://statistics.data.gov.uk/doc/local-authority/30UN,Homelessness,Contractors Charges 5,5313,NPHA void loss SRBC interim accommodation April 2016 - March 2017,29/03/2017,0000431022,"8,165.29",Revenue,NEW PROGRESS HOUSING ASSOC ref:DNSOU001,00030135
South Ribble Council,http://statistics.data.gov.uk/doc/local-authority/30UN,Scrutiny,Contractors Charges 5,5313,"Resettlement Programme - Recharges for work done to a property as followsVoid Rent Loss 873.72 - (4/1/17 - 6/3/17 = 9",31/03/2017,0000431085,"4,108.12",Revenue,NEW PROGRESS HOUSING ASSOC ref:DNSOU001,00030135
South Ribble Council,http://statistics.data.gov.uk/doc/local-authority/30UN,HR & Communications,Advertising,4848,PRINTING OF THE SPRING EDITION OF FORWARD NEWSPAPER (15TH MARCH 2017),29/03/2017,0000431020,"4,825.00",Revenue,NEWSQUEST MEDIA GROUP LTD,00121934
South Ribble Council,http://statistics.data.gov.uk/doc/local-authority/30UN,HR & Communications,Advertising,4848,Advertising,29/03/2017,0000431020,365.00,Revenue,NEWSQUEST MEDIA GROUP LTD,00121934
South Ribble Council,http://statistics.data.gov.uk/doc/local-authority/30UN,HR & Communications,Advertising,4848,THE DELIVERY OF EXTRA FORWARD NEWSPAPERS,29/03/2017,0000431021,550.00,Revenue,NEWSQUEST MEDIA GROUP LTD,00121934
South Ribble Council,http://statistics.data.gov.uk/doc/local-authority/30UN,Property Services,Operational Furniture & Equip,4010,Catering supplies,10/03/2017,0000430454,272.22,Revenue,NISBETS,00030164
South Ribble Council,http://statistics.data.gov.uk/doc/local-authority/30UN,HR & Communications,Training Expense-Course Fees,1406,APPEALS TRAINING FOR THE COMITEE AND PREP FEE FEB 2017,29/03/2017,0000430929,765.50,Revenue,NORTH WEST EMPLOYERS,00029829
South Ribble Council,http://statistics.data.gov.uk/doc/local-authority/30UN,Scrutiny,Training Expense-Course Fees,1420,Course Booking - Role of Scrutiny in Improvement seminar 16th March 2017 Candidates: Councillors NAMES REDACTED,31/03/2017,0000431080,297.00,Revenue,NORTH WEST EMPLOYERS,00029829
South Ribble Council,http://statistics.data.gov.uk/doc/local-authority/30UN,Neighbourhood Admin & Support,Materials General,4040,SCHMIDT MINI SWEEPER BRUSHES (SWINGO) - 71107/1,03/03/2017,0000430301,740.80,Revenue,NORTHERN MUNICIPAL SPARES LTD,00117061
South Ribble Council,http://statistics.data.gov.uk/doc/local-authority/30UN,Development Enterprise & Comm Mgnt,Other Misc,4851,Vertical half page advert in March/April edition of Lancashire Business View to be placed alongside the Preston and South,31/03/2017,0000431046,600.00,Revenue,Northpoint Publishing Ltd,132204
South Ribble Council,http://statistics.data.gov.uk/doc/local-authority/30UN,Development Enterprise & Comm Mgnt,Operational Furniture & Equip,4011,"Printing of 3 Historic portraits on board, c.A2 size at 38 each.  114 +VAT Printing  of 5 photographs on board at A0 size at",24/03/2017,0000430860,544.00,Revenue,NORWYN LTD,00118303
South Ribble Council,http://statistics.data.gov.uk/doc/local-authority/30UN,HR & Communications,Training Expense-Course Fees,1405,TRAINING FOR THE HOUSING SECTION AND OTHER LOCAL AUTHORITIES (OTHER LAS WILL BE RECHARGED),29/03/2017,0000430905,"2,450.00",Revenue,NOW MEDICAL,130250
South Ribble Council,http://statistics.data.gov.uk/doc/local-authority/30UN,Area 1 - Penwortham Western Parishes,Professional Fees,4514,DEPLOYMENT OF OFFICERS FEBRUARY 2017,10/03/2017,0000430520,"1,211.27",Revenue,NSL LTD,00116868
South Ribble Council,http://statistics.data.gov.uk/doc/local-authority/30UN,Area 1 - Penwortham Western Parishes,Other Misc,4855,CASH COLLECTIONS AND RINGO TRANSACTIONS FEBRUARY 2017,10/03/2017,0000430520,356.73,Revenue,NSL LTD,00116868
South Ribble Council,http://statistics.data.gov.uk/doc/local-authority/30UN,Information Services,Peripherals,4247,Annual purchase order for 1yr SystemCare Support Service for period 01/04/17 - 31/03/18,03/03/2017,0000430354,"5,506.00",Revenue,NVIRON LTD,00028781
South Ribble Council,http://statistics.data.gov.uk/doc/local-authority/30UN,Information Services,Peripherals,4247,KACE support & maintenance for  period 30/04/17 - 29/03/18,29/03/2017,0000430910,"1,157.50",Revenue,NVIRON LTD,00028781
South Ribble Council,http://statistics.data.gov.uk/doc/local-authority/30UN,Shared Financial Services,Balance Sheet,0140,refund,22/03/2017,0000430728,"1,400.00",Revenue,OSTEOCARE (EAST MIDLANDS) LTD,130874
South Ribble Council,http://statistics.data.gov.uk/doc/local-authority/30UN,Regeneration,Operational Furniture & Equip,4010,PPE,01/03/2017,0000430309,301.42,Revenue,OUTDOOR ACTION LTD,130008
South Ribble Council,http://statistics.data.gov.uk/doc/local-authority/30UN,Shared Assurance Services,Professional Fees,4510,Property surveys re flood grants:10 residential properties at 294 = 2940 3 Businesses at 294 = 882  Plus VAT of 764.40,01/03/2017,0000430095,588.00,Revenue,Pell Frischmann,132016
South Ribble Council,http://statistics.data.gov.uk/doc/local-authority/30UN,Property Services,External Contractors Charges,4575,To supply buffet @6.00 per head for 15 on 13th February 2017 @ 16.30 to SRBC,03/03/2017,0000430296,90.00,Revenue,Penningtons Catering Ltd,131684
South Ribble Council,http://statistics.data.gov.uk/doc/local-authority/30UN,Property Services,External Contractors Charges,4575,To supply buffet @6.00 per head for 15 on 16th February 2017 @ 16.30 to SRBC,03/03/2017,0000430296,90.00,Revenue,Penningtons Catering Ltd,131684
South Ribble Council,http://statistics.data.gov.uk/doc/local-authority/30UN,Property Services,External Contractors Charges,4575,To supply Buffet @ 6.00 per head for 14 on 21st Feb 2017 @ 16.30 to SRBC,03/03/2017,0000430296,84.00,Revenue,Penningtons Catering Ltd,131684
South Ribble Council,http://statistics.data.gov.uk/doc/local-authority/30UN,Property Services,External Contractors Charges,4575,To supply Hot meals @ 6.20 per head for 20 on 22nd Feb 2017 @ 16.30 to SRBC,03/03/2017,0000430296,124.00,Revenue,Penningtons Catering Ltd,131684
South Ribble Council,http://statistics.data.gov.uk/doc/local-authority/30UN,Property Services,External Contractors Charges,4575,To supply Hot meals @ 6.20 per head for 55 on 01/03/17 @ 16.30 to SRBC,10/03/2017,0000430478,341.00,Revenue,Penningtons Catering Ltd,131684
South Ribble Council,http://statistics.data.gov.uk/doc/local-authority/30UN,HR & Communications,External Contractors Charges,4575,To supply buffet @ 6.00 per head on 14/03/17 @ 16.30 to SRBC,22/03/2017,0000430664,90.00,Revenue,Penningtons Catering Ltd,131684
South Ribble Council,http://statistics.data.gov.uk/doc/local-authority/30UN,HR & Communications,External Contractors Charges,4575,To supply buffet @ 6.00 per head for 15 on 13/03/17 @ 16.30 to SRBC,22/03/2017,0000430664,90.00,Revenue,Penningtons Catering Ltd,131684
South Ribble Council,http://statistics.data.gov.uk/doc/local-authority/30UN,HR & Communications,External Contractors Charges,4575,To supply buffet @ 6.00 per head for 20 on 14/03/17 @ 16.30 to SRBC,22/03/2017,0000430664,120.00,Revenue,Penningtons Catering Ltd,131684
South Ribble Council,http://statistics.data.gov.uk/doc/local-authority/30UN,HR & Communications,Other Misc,4851,BUFFET LUNCH TO BE PROVIDED FOR NOW MEDICAL TRAINING DAY,22/03/2017,0000430664,126.00,Revenue,Penningtons Catering Ltd,131684
South Ribble Council,http://statistics.data.gov.uk/doc/local-authority/30UN,Development Enterprise & Comm Mgnt,External Contractors Charges,4575,To supply hot meals @ 6.20 per head for 20 on 22/03/17  @ 16.30 to SRBC,31/03/2017,0000430861,124.00,Revenue,Penningtons Catering Ltd,131684
South Ribble Council,http://statistics.data.gov.uk/doc/local-authority/30UN,Development Enterprise & Comm Mgnt,External Contractors Charges,4575,To supply buffet @ 6.00 per head for 14 on 21/03/17 @ 16.30 to SRBC,31/03/2017,0000430861,155.00,Revenue,Penningtons Catering Ltd,131684
South Ribble Council,http://statistics.data.gov.uk/doc/local-authority/30UN,Development Enterprise & Comm Mgnt,Other Misc,4851,Buffet for up to 30 people,31/03/2017,0000430861,180.00,Revenue,Penningtons Catering Ltd,131684
South Ribble Council,http://statistics.data.gov.uk/doc/local-authority/30UN,Development Enterprise & Comm Mgnt,Other Misc,4851,Catering for 20 people for Dementia Action Alliance,31/03/2017,0000430861,120.00,Revenue,Penningtons Catering Ltd,131684
South Ribble Council,http://statistics.data.gov.uk/doc/local-authority/30UN,Development Enterprise & Comm Mgnt,Other Misc,485K,"Catering for Leyland Town Team AGM on Tuesday 21st March @ 5.30pm South Ribble Borough Council, Civic Centre, Leyland",31/03/2017,0000430861,180.00,Revenue,Penningtons Catering Ltd,131684
South Ribble Council,http://statistics.data.gov.uk/doc/local-authority/30UN,Property Services,External Contractors Charges,4575,To supply hot meals @ 6.20 per head on 29/03/17 @ 16.30 to SRBC,31/03/2017,0000431029,341.00,Revenue,Penningtons Catering Ltd,131684
South Ribble Council,http://statistics.data.gov.uk/doc/local-authority/30UN,Environmental Health,Professional Fees,4522,gov fee,31/03/2017,0000431078,484.00,Revenue,Personnel Checks,131483
South Ribble Council,http://statistics.data.gov.uk/doc/local-authority/30UN,Environmental Health,Professional Fees,4522,admin fee,31/03/2017,0000431078,146.63,Revenue,Personnel Checks,131483
South Ribble Council,http://statistics.data.gov.uk/doc/local-authority/30UN,Neighbourhood Admin & Support,Vehicle Running Costs,3132,jan fuel was fully rec`d in error previous inv,01/03/2017,0000430054,272.18,Revenue,PETROMEX MILLBROOK WAY SERVICE STATION,00062572
South Ribble Council,http://statistics.data.gov.uk/doc/local-authority/30UN,Housing,Cap Grant- Improve Grants,C570,DFG works at ADDRESS REDACTED,03/03/2017,0000430040,"15,858.00",Revenue,NAME REDACTED,132131
South Ribble Council,http://statistics.data.gov.uk/doc/local-authority/30UN,Housing,Cap Grant- Improve Grants,C570,DFG works at ADDRESS REDACTED,29/03/2017,0000430957,"10,000.00",Revenue,NAME REDACTED,132131
South Ribble Council,http://statistics.data.gov.uk/doc/local-authority/30UN,Area 2 - Waste Transport/Eastern & Central Teams,Materials General,4040,"1 barrel (205 Litre) of 10/30 VDS-4 spec. 1.48 PER LITRE 1 barrel (205 Litre) of Pink Antifreeze. 1.03 PER LITRE",15/03/2017,0000430626,514.55,Revenue,PILKINGTON OILS,00113531
South Ribble Council,http://statistics.data.gov.uk/doc/local-authority/30UN,Information Services,Stationery,4133,"75,000  Evolution Everyday A4 80gm 7500 sheets Evolution Everyday A3 90gm",15/03/2017,0000430583,426.00,Revenue,PREMIER PAPER GROUP LTD,00022606
South Ribble Council,http://statistics.data.gov.uk/doc/local-authority/30UN,Regeneration,Other Misc,4851,"Conversion of bathroom in to a wet room including new fixtures, also supervision and checks done on the work carried out",24/03/2017,0000430864,"4,895.00",Revenue,PRESTON CARE & REPAIR,130877
South Ribble Council,http://statistics.data.gov.uk/doc/local-authority/30UN,Regeneration,Other Misc,4851,12 hours labour,24/03/2017,0000430865,264.00,Revenue,PRESTON CARE & REPAIR,130877
South Ribble Council,http://statistics.data.gov.uk/doc/local-authority/30UN,Area 2 - Waste Transport/Eastern & Central Teams,Materials General,4040,TR171,17/03/2017,0000430542,528.75,Revenue,PRESTON TYRE SPECIALISTS,00109516
South Ribble Council,http://statistics.data.gov.uk/doc/local-authority/30UN,Democratic Services,Other Misc,4423,Corresponding Numbers List,15/03/2017,0000430346,368.00,Revenue,PRINT IMAGE NETWORK LTD,00089199
South Ribble Council,http://statistics.data.gov.uk/doc/local-authority/30UN,Democratic Services,Other Misc,4421,WALTON LE DALE WARD BY ELECTION CORRESPONDING NUMBER LISTS (DC03/076418/),03/03/2017,0000430375,867.36,Revenue,PRINT IMAGE NETWORK LTD,00089199
South Ribble Council,http://statistics.data.gov.uk/doc/local-authority/30UN,Democratic Services,Other Misc,4422,WALTON LE DALE EAST WARD POSTAL VOTE PACKS (DC03/076267),17/03/2017,0000430669,"1,250.42",Revenue,PRINT IMAGE NETWORK LTD,00089199
South Ribble Council,http://statistics.data.gov.uk/doc/local-authority/30UN,Democratic Services,Other Misc,4421,WALTON LE DALE WARD BY ELECTION BALLOT BOOKS (DC03/076298/),22/03/2017,0000430756,841.18,Revenue,PRINT IMAGE NETWORK LTD,00089199
South Ribble Council,http://statistics.data.gov.uk/doc/local-authority/30UN,Area 3 - Parks/Leyland East West,Grounds Maint Cntrctrs Chgs,4657,SUPPLY SPARE PARTS FOR TURNFLY AND HEXAGONAL SWING - AS PER QUOTATION REF:  1612.14622,22/03/2017,0000429477,"1,840.74",Revenue,PROLUDIC LTD,00083263
South Ribble Council,http://statistics.data.gov.uk/doc/local-authority/30UN,Development Enterprise & Comm Mgnt,Other Misc,485A,Annual Web Site Hosting 1st April 2017 to 31st March 2018 businessinsouthribble.com Cost 600 + VAT,15/03/2017,0000430606,600.00,Revenue,PROTEAN SYSTEMS LIMITED,130003
South Ribble Council,http://statistics.data.gov.uk/doc/local-authority/30UN,Area 1 - Penwortham Western Parishes,Materials General,4040,Traffic Management Costs associated with installation of new bus shelter on Stanifield Lane Farington,29/03/2017,0000430891,378.85,Revenue,QUEENSBURY SHELTERS LTD,00084576
South Ribble Council,http://statistics.data.gov.uk/doc/local-authority/30UN,Area 1 - Penwortham Western Parishes,Materials General,4040,"Supply, deliver and install an Arun Cantilever shelter to the specification (1e) outside ADDRESS REDACTED per your quotation",29/03/2017,0000430892,"2,991.32",Revenue,QUEENSBURY SHELTERS LTD,00084576
South Ribble Council,http://statistics.data.gov.uk/doc/local-authority/30UN,Area 1 - Penwortham Western Parishes,Materials General,4040,Option 2b - full length steel perch seat,29/03/2017,0000430892,285.00,Revenue,QUEENSBURY SHELTERS LTD,00084576
South Ribble Council,http://statistics.data.gov.uk/doc/local-authority/30UN,Area 1 - Penwortham Western Parishes,Materials General,4040,Option 2c - 2 No vinyls `Farington Parish Council` with logo,29/03/2017,0000430892,112.20,Revenue,QUEENSBURY SHELTERS LTD,00084576
South Ribble Council,http://statistics.data.gov.uk/doc/local-authority/30UN,Area 1 - Penwortham Western Parishes,Materials General,4040,Option 2f DRU Infopost,29/03/2017,0000430892,261.00,Revenue,QUEENSBURY SHELTERS LTD,00084576
South Ribble Council,http://statistics.data.gov.uk/doc/local-authority/30UN,Area 1 - Penwortham Western Parishes,Materials General,4040,Extra 5a - To remove and dispose of existing shelter at the same time,29/03/2017,0000430892,275.00,Revenue,QUEENSBURY SHELTERS LTD,00084576
South Ribble Council,http://statistics.data.gov.uk/doc/local-authority/30UN,Development Enterprise & Comm Mgnt,Other Misc,4851,Sports Coaching on the Active Schools Primary Schools Coaching Programme,10/03/2017,0000430292,250.00,Revenue,Rachel Morris,132085
South Ribble Council,http://statistics.data.gov.uk/doc/local-authority/30UN,Property Services,External Contractors Charges,4570,"Schedule of Works Type of Works: External drainage works to areas as identified - all as per schedule below .			``Ad",15/03/2017,0000430447,240.00,Revenue,RED ROSE BUILDING MAINTENANCE,00085410
South Ribble Council,http://statistics.data.gov.uk/doc/local-authority/30UN,Property Services,External Contractors Charges,4570,materials,15/03/2017,0000430447,110.00,Revenue,RED ROSE BUILDING MAINTENANCE,00085410
South Ribble Council,http://statistics.data.gov.uk/doc/local-authority/30UN,Property Services,External Contractors Charges,4570,Schedule of Works Type of Works: External drainage works to areas as identified - all as per schedule below. ``Address:  ,15/03/2017,0000430455,480.00,Revenue,RED ROSE BUILDING MAINTENANCE,00085410
South Ribble Council,http://statistics.data.gov.uk/doc/local-authority/30UN,Property Services,External Contractors Charges,4570,materials,15/03/2017,0000430455,252.00,Revenue,RED ROSE BUILDING MAINTENANCE,00085410
South Ribble Council,http://statistics.data.gov.uk/doc/local-authority/30UN,Property Services,Rep & Maint Premises,2020,Excavate the collapsed drainage at Bamber Bridge Leisure Centre and carry out all works to make good as required. Excavate ,22/03/2017,0000430723,"1,200.00",Revenue,RED ROSE BUILDING MAINTENANCE,00085410
South Ribble Council,http://statistics.data.gov.uk/doc/local-authority/30UN,Property Services,Rep & Maint Premises,2020,materials,22/03/2017,0000430723,525.00,Revenue,RED ROSE BUILDING MAINTENANCE,00085410
South Ribble Council,http://statistics.data.gov.uk/doc/local-authority/30UN,Property Services,Rep & Maint Premises,2020,"Attend and inspect the drains at Bamber Bridge Leisure Centre, then unblock the main foul drains utilising hydraulic manhole lifter",22/03/2017,0000430724,480.00,Revenue,RED ROSE BUILDING MAINTENANCE,00085410
South Ribble Council,http://statistics.data.gov.uk/doc/local-authority/30UN,Homelessness,Contractors Charges 5,5311,"OSM payment April, May, June 2017 This payment is for 1st 3 months of the new financial year",29/03/2017,0000430955,"5,624.90",Revenue,REDDY & CO,00108177
South Ribble Council,http://statistics.data.gov.uk/doc/local-authority/30UN,Scrutiny,Professional Fees,4510,Specialist intensive support to the Resettlement Programme as per the service level agreement,22/03/2017,0000430616,"33,445.11",Revenue,REFUGEE ACTION,132107
South Ribble Council,http://statistics.data.gov.uk/doc/local-authority/30UN,Information Services,Peripherals,4248,Annual RIAMS subscription,08/03/2017,0000430519,"3,000.00",Revenue,RHE LIMITED,00120207
South Ribble Council,http://statistics.data.gov.uk/doc/local-authority/30UN,Area 2 - Waste Transport/Eastern & Central Teams,Materials General,4040,2 BATTERIES - VO65 KRE - JFC8266 - GA,01/03/2017,0000430197,256.00,Revenue,RIBBLESDALE AUTO ELECTRICS 1992 LTD,00033129
South Ribble Council,http://statistics.data.gov.uk/doc/local-authority/30UN,Area 3 - Parks/Leyland East West,Materials General,4040,"Rainbow Annuals - 1kg - 23 @159.95 Chameleon - 1kg - 1 - @185.00 Alliance - 1kg - 3 - @117.00",29/03/2017,0000430968,"1,931.93",Revenue,RIGBY TAYLOR LTD,00033145
South Ribble Council,http://statistics.data.gov.uk/doc/local-authority/30UN,Area 3 - Parks/Leyland East West,Materials General,4046,Rainbow Annuals - 1kg - 23 @159.95  Chameleon - 1kg - 1 - @185.00 Alliance - 1kg - 3 - @117.00,29/03/2017,0000430968,"1,931.92",Revenue,RIGBY TAYLOR LTD,00033145
South Ribble Council,http://statistics.data.gov.uk/doc/local-authority/30UN,Area 3 - Parks/Leyland East West,Materials General,4040,10 X 150ml CHIKARA 6 x 1 LITRE SPRAY INDICATORS,29/03/2017,0000430969,"1,763.00",Revenue,RIGBY TAYLOR LTD,00033145
South Ribble Council,http://statistics.data.gov.uk/doc/local-authority/30UN,Area 3 - Parks/Leyland East West,Materials General,4046,bulbs completed all PO in error,31/03/2017,0000430989,351.00,Revenue,RIGBY TAYLOR LTD,00033145
South Ribble Council,http://statistics.data.gov.uk/doc/local-authority/30UN,Property Services,Water Charges,2511,"Water charges for plots 37 - 42 (units 6 - 1) momentum business centre South rings, Bamber Bridge",08/03/2017,0000428678,50.00,Revenue,ROUNDHOUSE MOMENTUM DEVELOPMENTS LTD,131973
South Ribble Council,http://statistics.data.gov.uk/doc/local-authority/30UN,Property Services,Water Charges,2511,"Water charges for plots 37 - 42 (units 6 - 1) momentum business centre South rings, Bamber Bridge",08/03/2017,0000428678,50.00,Revenue,ROUNDHOUSE MOMENTUM DEVELOPMENTS LTD,131973
South Ribble Council,http://statistics.data.gov.uk/doc/local-authority/30UN,Property Services,Water Charges,2511,"Water charges for plots 37 - 42 (units 6 - 1) momentum business centre South rings, Bamber Bridge",08/03/2017,0000428678,50.00,Revenue,ROUNDHOUSE MOMENTUM DEVELOPMENTS LTD,131973
South Ribble Council,http://statistics.data.gov.uk/doc/local-authority/30UN,Property Services,Water Charges,2511,"Water charges for plots 37 - 42 (units 6 - 1) momentum business centre South rings, Bamber Bridge",08/03/2017,0000428678,50.00,Revenue,ROUNDHOUSE MOMENTUM DEVELOPMENTS LTD,131973
South Ribble Council,http://statistics.data.gov.uk/doc/local-authority/30UN,Property Services,Water Charges,2511,"Water charges for plots 37 - 42 (units 6 - 1) momentum business centre South rings, Bamber Bridge",08/03/2017,0000428678,50.00,Revenue,ROUNDHOUSE MOMENTUM DEVELOPMENTS LTD,131973
South Ribble Council,http://statistics.data.gov.uk/doc/local-authority/30UN,Property Services,Water Charges,2511,"Water charges for plots 37 - 42 (units 6 - 1) momentum business centre South rings, Bamber Bridge",08/03/2017,0000428678,50.00,Revenue,ROUNDHOUSE MOMENTUM DEVELOPMENTS LTD,131973
South Ribble Council,http://statistics.data.gov.uk/doc/local-authority/30UN,Property Services,Other Misc,485C,"Service charges for plots 37 - 42 (units 6 - 1) momentum business centre South rings, Bamber Bridge qtr ending March 2017",08/03/2017,0000428681,100.00,Revenue,ROUNDHOUSE MOMENTUM DEVELOPMENTS LTD,131973
South Ribble Council,http://statistics.data.gov.uk/doc/local-authority/30UN,Property Services,Other Misc,485C,"Service charges for plots 37 - 42 (units 6 - 1) momentum business centre South rings, Bamber Bridge qtr ending March 2017",08/03/2017,0000428681,100.00,Revenue,ROUNDHOUSE MOMENTUM DEVELOPMENTS LTD,131973
South Ribble Council,http://statistics.data.gov.uk/doc/local-authority/30UN,Property Services,Other Misc,485C,"Service charges for plots 37 - 42 (units 6 - 1) momentum business centre South rings, Bamber Bridge qtr ending March 2017",08/03/2017,0000428681,100.00,Revenue,ROUNDHOUSE MOMENTUM DEVELOPMENTS LTD,131973
South Ribble Council,http://statistics.data.gov.uk/doc/local-authority/30UN,Property Services,Other Misc,485C,"Service charges for plots 37 - 42 (units 6 - 1) momentum business centre South rings, Bamber Bridge qtr ending March 2017",08/03/2017,0000428681,100.00,Revenue,ROUNDHOUSE MOMENTUM DEVELOPMENTS LTD,131973
South Ribble Council,http://statistics.data.gov.uk/doc/local-authority/30UN,Property Services,Other Misc,485C,"Service charges for plots 37 - 42 (units 6 - 1) momentum business centre South rings, Bamber Bridge qtr ending March 2017",08/03/2017,0000428681,100.00,Revenue,ROUNDHOUSE MOMENTUM DEVELOPMENTS LTD,131973
South Ribble Council,http://statistics.data.gov.uk/doc/local-authority/30UN,Property Services,Other Misc,485C,"Service charges for plots 37 - 42 (units 6 - 1) momentum business centre South rings, Bamber Bridge qtr ending March 2017",08/03/2017,0000428681,100.00,Revenue,ROUNDHOUSE MOMENTUM DEVELOPMENTS LTD,131973
South Ribble Council,http://statistics.data.gov.uk/doc/local-authority/30UN,Property Services,Other Misc,485C,"Service charge for plots 37 - 42 (units 6 - 1) momentum business centre South rings, Bamber Bridge for quarter ending Dec17",08/03/2017,0000428683,100.00,Revenue,ROUNDHOUSE MOMENTUM DEVELOPMENTS LTD,131973
South Ribble Council,http://statistics.data.gov.uk/doc/local-authority/30UN,Property Services,Other Misc,485C,"Service charge for plots 37 - 42 (units 6 - 1) momentum business centre South rings, Bamber Bridge for quarter ending Dec17",08/03/2017,0000428683,100.00,Revenue,ROUNDHOUSE MOMENTUM DEVELOPMENTS LTD,131973
South Ribble Council,http://statistics.data.gov.uk/doc/local-authority/30UN,Property Services,Other Misc,485C,"Service charge for plots 37 - 42 (units 6 - 1) momentum business centre South rings, Bamber Bridge for quarter ending Dec17",08/03/2017,0000428683,100.00,Revenue,ROUNDHOUSE MOMENTUM DEVELOPMENTS LTD,131973
South Ribble Council,http://statistics.data.gov.uk/doc/local-authority/30UN,Property Services,Other Misc,485C,"Service charge for plots 37 - 42 (units 6 - 1) momentum business centre South rings, Bamber Bridge for quarter ending Dec17",08/03/2017,0000428683,100.00,Revenue,ROUNDHOUSE MOMENTUM DEVELOPMENTS LTD,131973
South Ribble Council,http://statistics.data.gov.uk/doc/local-authority/30UN,Property Services,Other Misc,485C,"Service charge for plots 37 - 42 (units 6 - 1) momentum business centre South rings, Bamber Bridge for quarter ending Dec17",08/03/2017,0000428683,100.00,Revenue,ROUNDHOUSE MOMENTUM DEVELOPMENTS LTD,131973
South Ribble Council,http://statistics.data.gov.uk/doc/local-authority/30UN,Property Services,Other Misc,485C,"Service charge for plots 37 - 42 (units 6 - 1) momentum business centre South rings, Bamber Bridge for quarter ending Dec17",08/03/2017,0000428683,100.00,Revenue,ROUNDHOUSE MOMENTUM DEVELOPMENTS LTD,131973
South Ribble Council,http://statistics.data.gov.uk/doc/local-authority/30UN,Property Services,Other Misc,485C,"Service charge for the quarter ending June 2017 for units 1 to 6 Momentum Place, South Rings",08/03/2017,0000430424,100.00,Revenue,ROUNDHOUSE MOMENTUM DEVELOPMENTS LTD,131973
South Ribble Council,http://statistics.data.gov.uk/doc/local-authority/30UN,Property Services,Other Misc,485C,"Service charge for the quarter ending June 2017 for units 1 to 6 Momentum Place, South Rings",08/03/2017,0000430424,100.00,Revenue,ROUNDHOUSE MOMENTUM DEVELOPMENTS LTD,131973
South Ribble Council,http://statistics.data.gov.uk/doc/local-authority/30UN,Property Services,Other Misc,485C,"Service charge for the quarter ending June 2017 for units 1 to 6 Momentum Place, South Rings",08/03/2017,0000430424,100.00,Revenue,ROUNDHOUSE MOMENTUM DEVELOPMENTS LTD,131973
South Ribble Council,http://statistics.data.gov.uk/doc/local-authority/30UN,Property Services,Other Misc,485C,"Service charge for the quarter ending June 2017 for units 1 to 6 Momentum Place, South Rings",08/03/2017,0000430424,100.00,Revenue,ROUNDHOUSE MOMENTUM DEVELOPMENTS LTD,131973
South Ribble Council,http://statistics.data.gov.uk/doc/local-authority/30UN,Property Services,Other Misc,485C,"Service charge for the quarter ending June 2017 for units 1 to 6 Momentum Place, South Rings",08/03/2017,0000430424,100.00,Revenue,ROUNDHOUSE MOMENTUM DEVELOPMENTS LTD,131973
South Ribble Council,http://statistics.data.gov.uk/doc/local-authority/30UN,Property Services,Other Misc,485C,"Service charge for the quarter ending June 2017 for units 1 to 6 Momentum Place, South Rings",08/03/2017,0000430424,100.00,Revenue,ROUNDHOUSE MOMENTUM DEVELOPMENTS LTD,131973
South Ribble Council,http://statistics.data.gov.uk/doc/local-authority/30UN,Democratic Services,Postage,4291,Postage,10/03/2017,0000430428,"1,468.88",Revenue,ROYAL MAIL GROUP PLC,00033543
South Ribble Council,http://statistics.data.gov.uk/doc/local-authority/30UN,Democratic Services,Other Misc,4422,Other Misc,31/03/2017,0000431010,319.16,Revenue,ROYAL MAIL GROUP PLC,00033543
South Ribble Council,http://statistics.data.gov.uk/doc/local-authority/30UN,Area 3 - Parks/Leyland East West,External Contractors Charges,4570,STUMP GRINDING AT LONGTON/WORDEN PARK,31/03/2017,0000430940,500.00,Revenue,RUSS ASPINALL T/A BEARDWOOD TREE SERVICE,00120443
South Ribble Council,http://statistics.data.gov.uk/doc/local-authority/30UN,Area 3 - Parks/Leyland East West,External Contractors Charges,4570,STUMP GRINDING (ADDN WORKS AT WORDEN PARK),31/03/2017,0000430940,100.00,Revenue,RUSS ASPINALL T/A BEARDWOOD TREE SERVICE,00120443
South Ribble Council,http://statistics.data.gov.uk/doc/local-authority/30UN,Development Enterprise & Comm Mgnt,Other Misc,4851,"Health Check Event 1 - 500 Health Check Event 2 - 500 Health Check Event 3 - 500 Health Check Event 4 - 500",03/03/2017,0000430291,500.00,Revenue,S O Health,131993
South Ribble Council,http://statistics.data.gov.uk/doc/local-authority/30UN,Environmental Health,Operational Furniture & Equip,4010,New drainage camera - per NAME REDACTED,31/03/2017,0000430981,"4,585.00",Revenue,SCANPROBE TECHNIQUES LTD,00035716
South Ribble Council,http://statistics.data.gov.uk/doc/local-authority/30UN,Property Services,Energy Costs,2303,2/11/16 to 1/2/17,01/03/2017,0000430259,439.61,Revenue,SCOTTISH HYDRO ELECTRIC,130051
South Ribble Council,http://statistics.data.gov.uk/doc/local-authority/30UN,Property Services,Energy Costs,2307,ccl,01/03/2017,0000430259,23.08,Revenue,SCOTTISH HYDRO ELECTRIC,130051
South Ribble Council,http://statistics.data.gov.uk/doc/local-authority/30UN,Property Services,Energy Costs,2303,1/11/17 to 31/1/17,01/03/2017,0000430260,478.23,Revenue,SCOTTISH HYDRO ELECTRIC,130051
South Ribble Council,http://statistics.data.gov.uk/doc/local-authority/30UN,Property Services,Energy Costs,2307,ccl,01/03/2017,0000430260,23.59,Revenue,SCOTTISH HYDRO ELECTRIC,130051
South Ribble Council,http://statistics.data.gov.uk/doc/local-authority/30UN,Property Services,Energy Costs,2303,1/1/17 to 31/1/17,01/03/2017,0000430263,"3,106.98",Revenue,SCOTTISH HYDRO ELECTRIC,130051
South Ribble Council,http://statistics.data.gov.uk/doc/local-authority/30UN,Property Services,Energy Costs,2307,ccl,01/03/2017,0000430263,163.00,Revenue,SCOTTISH HYDRO ELECTRIC,130051
South Ribble Council,http://statistics.data.gov.uk/doc/local-authority/30UN,Property Services,Energy Costs,2303,1/1/17 to 31/1/17,01/03/2017,0000430266,980.96,Revenue,SCOTTISH HYDRO ELECTRIC,130051
South Ribble Council,http://statistics.data.gov.uk/doc/local-authority/30UN,Property Services,Energy Costs,2307,ccl,01/03/2017,0000430266,49.79,Revenue,SCOTTISH HYDRO ELECTRIC,130051
South Ribble Council,http://statistics.data.gov.uk/doc/local-authority/30UN,Property Services,Energy Costs,2303,1/1/17 to 31/1/17,01/03/2017,0000430293,"2,064.22",Revenue,SCOTTISH HYDRO ELECTRIC,130051
South Ribble Council,http://statistics.data.gov.uk/doc/local-authority/30UN,Property Services,Energy Costs,2307,ccl,01/03/2017,0000430293,111.46,Revenue,SCOTTISH HYDRO ELECTRIC,130051
South Ribble Council,http://statistics.data.gov.uk/doc/local-authority/30UN,Property Services,Energy Costs,2304,7/12/16 to 2/3/17,15/03/2017,0000430631,"1,395.91",Revenue,SCOTTISH HYDRO ELECTRIC,130051
South Ribble Council,http://statistics.data.gov.uk/doc/local-authority/30UN,Property Services,Energy Costs,2307,ccl,15/03/2017,0000430631,109.25,Revenue,SCOTTISH HYDRO ELECTRIC,130051
South Ribble Council,http://statistics.data.gov.uk/doc/local-authority/30UN,Property Services,Energy Costs,2304,25/11/16 to 22/2/17,15/03/2017,0000430632,"2,722.45",Revenue,SCOTTISH HYDRO ELECTRIC,130051
South Ribble Council,http://statistics.data.gov.uk/doc/local-authority/30UN,Property Services,Energy Costs,2307,CCL,15/03/2017,0000430632,220.86,Revenue,SCOTTISH HYDRO ELECTRIC,130051
South Ribble Council,http://statistics.data.gov.uk/doc/local-authority/30UN,Property Services,Energy Costs,2304,6/1/17 to 7/2/17,15/03/2017,0000430633,"1,899.44",Revenue,SCOTTISH HYDRO ELECTRIC,130051
South Ribble Council,http://statistics.data.gov.uk/doc/local-authority/30UN,Property Services,Energy Costs,2307,CCL,15/03/2017,0000430633,137.35,Revenue,SCOTTISH HYDRO ELECTRIC,130051
South Ribble Council,http://statistics.data.gov.uk/doc/local-authority/30UN,Property Services,Energy Costs,2303,1/2/17 to 28/2/17,22/03/2017,0000430769,434.66,Revenue,SCOTTISH HYDRO ELECTRIC,130051
South Ribble Council,http://statistics.data.gov.uk/doc/local-authority/30UN,Property Services,Energy Costs,2307,ccl,22/03/2017,0000430769,21.28,Revenue,SCOTTISH HYDRO ELECTRIC,130051
South Ribble Council,http://statistics.data.gov.uk/doc/local-authority/30UN,Property Services,Energy Costs,2303,29/11/16 to 28,22/03/2017,0000430770,"1,998.06",Revenue,SCOTTISH HYDRO ELECTRIC,130051
South Ribble Council,http://statistics.data.gov.uk/doc/local-authority/30UN,Property Services,Energy Costs,2307,ccl,22/03/2017,0000430770,102.08,Revenue,SCOTTISH HYDRO ELECTRIC,130051
South Ribble Council,http://statistics.data.gov.uk/doc/local-authority/30UN,Property Services,Energy Costs,2303,1/2/17 to 28/2,22/03/2017,0000430771,"2,649.67",Revenue,SCOTTISH HYDRO ELECTRIC,130051
South Ribble Council,http://statistics.data.gov.uk/doc/local-authority/30UN,Property Services,Energy Costs,2307,ccl,22/03/2017,0000430771,137.47,Revenue,SCOTTISH HYDRO ELECTRIC,130051
South Ribble Council,http://statistics.data.gov.uk/doc/local-authority/30UN,Property Services,Energy Costs,2303,1/2/17 to 28/2,22/03/2017,0000430773,"1,894.62",Revenue,SCOTTISH HYDRO ELECTRIC,130051
South Ribble Council,http://statistics.data.gov.uk/doc/local-authority/30UN,Property Services,Energy Costs,2307,ccl,22/03/2017,0000430773,102.70,Revenue,SCOTTISH HYDRO ELECTRIC,130051
South Ribble Council,http://statistics.data.gov.uk/doc/local-authority/30UN,Property Services,Energy Costs,2303,1/2/17 to 28/2,22/03/2017,0000430774,924.19,Revenue,SCOTTISH HYDRO ELECTRIC,130051
South Ribble Council,http://statistics.data.gov.uk/doc/local-authority/30UN,Property Services,Energy Costs,2307,ccl,22/03/2017,0000430774,46.42,Revenue,SCOTTISH HYDRO ELECTRIC,130051
South Ribble Council,http://statistics.data.gov.uk/doc/local-authority/30UN,Information Services,Capital Expenditure,C234,Generator Maintenance as per quote ref. 18589,03/03/2017,0000426560,"2,385.00",Revenue,SECURE POWER LTD,131336
South Ribble Council,http://statistics.data.gov.uk/doc/local-authority/30UN,Healthy Communities,Consultancy Fees,4536,"R & M 2016/17 payable by 12 payments of 14,931.44 + VAT",31/03/2017,0000430376,"14,931.44",Revenue,SERCO LEISURE (OP) LTD,00094906
South Ribble Council,http://statistics.data.gov.uk/doc/local-authority/30UN,Shared Assurance Services,Training Expense-Course Fees,1402,2 day training course with accommodation,24/03/2017,0000430890,937.50,Revenue,SERCO SHARED SERVICES CENTRE,00120919
South Ribble Council,http://statistics.data.gov.uk/doc/local-authority/30UN,Customer Contact,Training Expense-Course Fees,1402,Please provide 4 places on the following Course in Manchester on Wednesday 17th May 2017Homelessness prevention &,22/03/2017,0000430696,356.40,Revenue,SHELTER PUBLICATIONS,00034568
South Ribble Council,http://statistics.data.gov.uk/doc/local-authority/30UN,Neighbourhood Admin & Support,Clothing- Uniforms & Laundry,4410,PORTWEST C466 HI VIS BOMBER JACKET C/W SRBC LOGO - SIZE SMALL (SRBC 23),08/03/2017,0000430357,71.60,Revenue,SMART IMAGE WORKWEAR,00031503
South Ribble Council,http://statistics.data.gov.uk/doc/local-authority/30UN,Neighbourhood Admin & Support,Clothing- Uniforms & Laundry,4410,PORTWEST C466 HI VIZ BOMBER JACKET C/W SRBC LOGO SIZE MEDIUM (SRBC 23),08/03/2017,0000430357,143.20,Revenue,SMART IMAGE WORKWEAR,00031503
South Ribble Council,http://statistics.data.gov.uk/doc/local-authority/30UN,Neighbourhood Admin & Support,Clothing- Uniforms & Laundry,4410,PORTWEST C466 HI VIZ BOMBER JACKET  C/W SRBC LOGO SIZE LARGE  (SRBC 23),08/03/2017,0000430357,143.20,Revenue,SMART IMAGE WORKWEAR,00031503
South Ribble Council,http://statistics.data.gov.uk/doc/local-authority/30UN,Neighbourhood Admin & Support,Clothing- Uniforms & Laundry,4410,PORTWEST C466 HI VIZ BOMBER JACKET  C/W SRBC LOGO SIZE X LARGE  (SRBC 23),08/03/2017,0000430357,214.80,Revenue,SMART IMAGE WORKWEAR,00031503
South Ribble Council,http://statistics.data.gov.uk/doc/local-authority/30UN,Neighbourhood Admin & Support,Clothing- Uniforms & Laundry,4410,PORTWEST C466 HI VIZ BOMBER JACKET  C/W SRBC LOGO SIZE XX LARGE  (SRBC 23),08/03/2017,0000430357,35.80,Revenue,SMART IMAGE WORKWEAR,00031503
South Ribble Council,http://statistics.data.gov.uk/doc/local-authority/30UN,Neighbourhood Admin & Support,Clothing- Uniforms & Laundry,4410,NAVY POLO SHIRT SHORT SLEEVED C/W SRBC LOGO - SIZE SMALL (SRBC 32),08/03/2017,0000430358,16.60,Revenue,SMART IMAGE WORKWEAR,00031503
South Ribble Council,http://statistics.data.gov.uk/doc/local-authority/30UN,Neighbourhood Admin & Support,Clothing- Uniforms & Laundry,4410,NAVY POLO SHIRT SHORT SLEEVED C/W SRBC LOGO - SIZE MEDIUM (SRBC 32),08/03/2017,0000430358,83.00,Revenue,SMART IMAGE WORKWEAR,00031503
South Ribble Council,http://statistics.data.gov.uk/doc/local-authority/30UN,Neighbourhood Admin & Support,Clothing- Uniforms & Laundry,4410,NAVY POLO SHIRT SHORT SLEEVED C/W SRBC LOGO - SIZE LARGE (SRBC 32),08/03/2017,0000430358,66.40,Revenue,SMART IMAGE WORKWEAR,00031503
South Ribble Council,http://statistics.data.gov.uk/doc/local-authority/30UN,Neighbourhood Admin & Support,Clothing- Uniforms & Laundry,4410,NAVY POLO SHIRT SHORT SLEEVED C/W SRBC LOGO - SIZE X LARGE (SRBC 32),08/03/2017,0000430358,99.60,Revenue,SMART IMAGE WORKWEAR,00031503
South Ribble Council,http://statistics.data.gov.uk/doc/local-authority/30UN,Neighbourhood Admin & Support,Clothing- Uniforms & Laundry,4410,NAVY POLO SHIRT SHORT SLEEVED C/W SRBC LOGO - SIZE XX LARGE (SRBC 32),08/03/2017,0000430358,62.25,Revenue,SMART IMAGE WORKWEAR,00031503
South Ribble Council,http://statistics.data.gov.uk/doc/local-authority/30UN,Neighbourhood Admin & Support,Clothing- Uniforms & Laundry,4410,NAVY SWEATSHIRT UC203 C/W SRBC LOGO SIZE SMALL (SRBC31),15/03/2017,0000430552,36.90,Revenue,SMART IMAGE WORKWEAR,00031503
South Ribble Council,http://statistics.data.gov.uk/doc/local-authority/30UN,Neighbourhood Admin & Support,Clothing- Uniforms & Laundry,4410,NAVY SWEATSHIRT UC203 C/W SRBC LOGO SIZE MEDIUM (SRBC31),15/03/2017,0000430552,55.35,Revenue,SMART IMAGE WORKWEAR,00031503
South Ribble Council,http://statistics.data.gov.uk/doc/local-authority/30UN,Neighbourhood Admin & Support,Clothing- Uniforms & Laundry,4410,NAVY SWEATSHIRT UC203 C/W SRBC LOGO SIZE LARGE (SRBC31),15/03/2017,0000430552,49.20,Revenue,SMART IMAGE WORKWEAR,00031503
South Ribble Council,http://statistics.data.gov.uk/doc/local-authority/30UN,Neighbourhood Admin & Support,Clothing- Uniforms & Laundry,4410,NAVY SWEATSHIRT UC203 C/W SRBC LOGO SIZE X LARGE (SRBC31),15/03/2017,0000430552,92.25,Revenue,SMART IMAGE WORKWEAR,00031503
South Ribble Council,http://statistics.data.gov.uk/doc/local-authority/30UN,Neighbourhood Admin & Support,Clothing- Uniforms & Laundry,4410,NAVY SWEATSHIRT UC203 C/W SRBC LOGO SIZE XX LARGE (SRBC31),15/03/2017,0000430552,55.35,Revenue,SMART IMAGE WORKWEAR,00031503
South Ribble Council,http://statistics.data.gov.uk/doc/local-authority/30UN,Neighbourhood Admin & Support,Clothing- Uniforms & Laundry,4410,ORN VULTURE BALLISTIC TROUSERS WITH COMBAT STYLE LEG POCKETS IN NAVY SIZE SMALL WITH REGULAR LEG,22/03/2017,0000430778,305.20,Revenue,SMART IMAGE WORKWEAR,00031503
South Ribble Council,http://statistics.data.gov.uk/doc/local-authority/30UN,Neighbourhood Admin & Support,Clothing- Uniforms & Laundry,4410,ORN VULTURE BALLISTIC TROUSERS WITH COMBAT STYLE LEG POCKETS IN NAVY SIZE MED WITH REGULAR LEG,22/03/2017,0000430778,305.20,Revenue,SMART IMAGE WORKWEAR,00031503
South Ribble Council,http://statistics.data.gov.uk/doc/local-authority/30UN,Neighbourhood Admin & Support,Clothing- Uniforms & Laundry,4410,ORN VULTURE BALLISTIC TROUSERS WITH COMBAT STYLE LEG POCKETS IN NAVY - SIZE MEDIUM  WITH TALL LEG ,22/03/2017,0000430778,87.20,Revenue,SMART IMAGE WORKWEAR,00031503
South Ribble Council,http://statistics.data.gov.uk/doc/local-authority/30UN,Neighbourhood Admin & Support,Clothing- Uniforms & Laundry,4410,ORN VULTURE BALLISTIC TROUSERS WITH COMBAT STYLE LEG POCKETS IN NAVY - SIZE LARGE REGULAR LEG,22/03/2017,0000430778,370.60,Revenue,SMART IMAGE WORKWEAR,00031503
South Ribble Council,http://statistics.data.gov.uk/doc/local-authority/30UN,Neighbourhood Admin & Support,Clothing- Uniforms & Laundry,4410,ORN VULTURE BALLISTIC TROUSERS WITH COMBAT STYLE LEG POCKETS IN NAVY - SIZE LARGE WITH TALL LEG ,22/03/2017,0000430778,87.20,Revenue,SMART IMAGE WORKWEAR,00031503
South Ribble Council,http://statistics.data.gov.uk/doc/local-authority/30UN,Neighbourhood Admin & Support,Clothing- Uniforms & Laundry,4410,ORN VULTURE BALLISTIC TROUSERS WITH COMBAT STYLE LEG POCKETS IN NAVY - SIZE X LARGE  WITH REG LEG ,22/03/2017,0000430778,283.40,Revenue,SMART IMAGE WORKWEAR,00031503
South Ribble Council,http://statistics.data.gov.uk/doc/local-authority/30UN,Neighbourhood Admin & Support,Clothing- Uniforms & Laundry,4410,ORN VULTURE BALLISTIC TROUSERS WITH COMBAT STYLE LEG POCKETS IN NAVY - SIZE XX LARGE WITH REG LEG,22/03/2017,0000430778,174.40,Revenue,SMART IMAGE WORKWEAR,00031503
South Ribble Council,http://statistics.data.gov.uk/doc/local-authority/30UN,Neighbourhood Admin & Support,Clothing- Uniforms & Laundry,4410,ORN VULTURE BALLISTIC TROUSERS WITH COMBAT STYLE LEG POCKETS IN NAVY - SIZE XX LARGE WITH TALL LEG ,22/03/2017,0000430778,43.60,Revenue,SMART IMAGE WORKWEAR,00031503
South Ribble Council,http://statistics.data.gov.uk/doc/local-authority/30UN,Neighbourhood Admin & Support,Clothing- Uniforms & Laundry,4410,COWGRAIN LINED DRIVERS GLOVE MHS INTERNATIONAL - SRBC14,22/03/2017,0000430779,78.00,Revenue,SMART IMAGE WORKWEAR,00031503
South Ribble Council,http://statistics.data.gov.uk/doc/local-authority/30UN,Neighbourhood Admin & Support,Clothing- Uniforms & Laundry,4410,GLOVES - BLUE SIZE  10)PORTWEST A643 AMBER CUT RESISTANT - SRBC49,22/03/2017,0000430779,95.40,Revenue,SMART IMAGE WORKWEAR,00031503
South Ribble Council,http://statistics.data.gov.uk/doc/local-authority/30UN,Neighbourhood Admin & Support,Clothing- Uniforms & Laundry,4410,WATERPROOF TROUSERS - SUPERTOUCH 18B4 YELLOW - extra large -SRBC25,22/03/2017,0000430779,60.75,Revenue,SMART IMAGE WORKWEAR,00031503
South Ribble Council,http://statistics.data.gov.uk/doc/local-authority/30UN,Neighbourhood Admin & Support,Clothing- Uniforms & Laundry,4410,WATERPROOF JACKETS  - SUPERTOUCH 35B4 YELLOW - extra large - SRBC24,22/03/2017,0000430779,106.25,Revenue,SMART IMAGE WORKWEAR,00031503
South Ribble Council,http://statistics.data.gov.uk/doc/local-authority/30UN,Environmental Health,External Contractors Charges,4570,Clean up of ADDRESS REDACTED as per NAME REDACTED,31/03/2017,0000431030,"1,380.00",Revenue,SMJ CONTRACT CLEANING,130044
South Ribble Council,http://statistics.data.gov.uk/doc/local-authority/30UN,HR & Communications,Agency Fees,1121,PAYMENT FOR NAME REDACTED INTERIM CHEIF EXECUTIVE,10/03/2017,0000430335,"9,720.00",Revenue,SOLACE IN BUSINESS LTD,00039990
South Ribble Council,http://statistics.data.gov.uk/doc/local-authority/30UN,HR & Communications,Agency Fees,1121,PAYMENT FOR NAME REDACTED INTERIM CHEIF EXECUTIVE,22/03/2017,0000430706,"16,200.00",Revenue,SOLACE IN BUSINESS LTD,00039990
South Ribble Council,http://statistics.data.gov.uk/doc/local-authority/30UN,Homelessness,Peripherals,4272,EL0001 Defender Window Alert Alarm 5 boxes of 50 EL0007 defender door wedge alarms 1 box of 50,29/03/2017,0000430561,647.50,Revenue,SOLON SECURITY LTD,00113845
South Ribble Council,http://statistics.data.gov.uk/doc/local-authority/30UN,Environmental Health,Training Expense-Course Fees,1400,First Aid Refresher course - per NAME REDACTED,10/03/2017,0000430456,850.00,Revenue,SOUTH RIBBLE COMMUNITY LEISURE LTD,00094210
South Ribble Council,http://statistics.data.gov.uk/doc/local-authority/30UN,Neighbourhood Admin & Support,Operational Furniture & Equip,4010,LITTER PICKER - HA340,03/03/2017,0000430365,374.00,Revenue,SPALDINGS,00070849
South Ribble Council,http://statistics.data.gov.uk/doc/local-authority/30UN,Neighbourhood Admin & Support,Materials General,4040,DUCT TAPE - 50mm - 08272,03/03/2017,0000430365,34.44,Revenue,SPALDINGS,00070849
South Ribble Council,http://statistics.data.gov.uk/doc/local-authority/30UN,Neighbourhood Admin & Support,Materials General,4040,HAND WIPES (200 TUB) - WET WIPES - 30008,29/03/2017,0000430980,216.00,Revenue,SPALDINGS,00070849
South Ribble Council,http://statistics.data.gov.uk/doc/local-authority/30UN,Neighbourhood Admin & Support,Operational Furniture & Equip,4010,LOPPERS (BAHCO P16-60) - 27345,29/03/2017,0000430980,239.94,Revenue,SPALDINGS,00070849
South Ribble Council,http://statistics.data.gov.uk/doc/local-authority/30UN,Neighbourhood Admin & Support,Operational Furniture & Equip,4010,LANDSCAPE RAKE COMPLETE (18 TOOTH) - 04188,29/03/2017,0000430980,44.00,Revenue,SPALDINGS,00070849
South Ribble Council,http://statistics.data.gov.uk/doc/local-authority/30UN,Planning,Operational Furniture & Equip,4010,5000 x Leaflets (Planning Application) A neighbours guide on how to comment as previous order,03/03/2017,0000430343,550.00,Revenue,SPRINTPRINT (PRESTON),131207
South Ribble Council,http://statistics.data.gov.uk/doc/local-authority/30UN,Regeneration,Rents,2402,Room Hire for South Ribble Borough Council Managers Forum meeting on 23 March between 9am & 4.30pm. Inc refreshments,31/03/2017,0000431086,370.00,Revenue,ST CATHERINES HOSPICE (LANCASHIRE) LTD,130082
South Ribble Council,http://statistics.data.gov.uk/doc/local-authority/30UN,Development Enterprise & Comm Mgnt,Other Misc,4851,Skills project development for Schools Workshop� Ref Leyland Truck Trail March 2017,31/03/2017,0000431077,"2,480.00",Revenue,STEMFirst Ltd,132095
South Ribble Council,http://statistics.data.gov.uk/doc/local-authority/30UN,Development Enterprise & Comm Mgnt,Advertising,4842,"Management of Museum Website as per agreement: Six Months Renewal from 1-10-16	440",22/03/2017,0000430286,440.00,Revenue,STEPHEN WATSON,00113557
South Ribble Council,http://statistics.data.gov.uk/doc/local-authority/30UN,Area 2 - Waste Transport/Eastern & Central Teams,Operational Furniture & Equip,4010,VEHICLE LIFT PARTS (WORKSHOP),17/03/2017,0000430735,582.14,Revenue,Stertil UK Limited,132202
South Ribble Council,http://statistics.data.gov.uk/doc/local-authority/30UN,Development Enterprise & Comm Mgnt,Other Misc,4851,"Truck Trail Set up and management of Twitter, Instagram & Facebook between Feb- Sept 2017 @4,850.00",03/03/2017,0000430284,"1,000.00",Revenue,STONE CREATE LTD,130896
South Ribble Council,http://statistics.data.gov.uk/doc/local-authority/30UN,Regeneration,Other Misc,4861,Leyland Truck Trail,15/03/2017,0000430457,"5,000.00",Revenue,STONE CREATE LTD,130896
South Ribble Council,http://statistics.data.gov.uk/doc/local-authority/30UN,Development Enterprise & Comm Mgnt,Other Misc,4851,"Truck Trail � School Competition launch 21st February STEM materials designed & printed.",15/03/2017,0000430601,"1,950.00",Revenue,STONE CREATE LTD,130896
South Ribble Council,http://statistics.data.gov.uk/doc/local-authority/30UN,Development Enterprise & Comm Mgnt,Other Misc,4851,"Truck Trail Set up and management of Twitter, Instagram & Facebook between Feb- Sept 2017 @4,850.00",31/03/2017,0000431054,550.00,Revenue,STONE CREATE LTD,130896
South Ribble Council,http://statistics.data.gov.uk/doc/local-authority/30UN,Property Services,Rents,2401,"2017 / 2018 rental fees for Forward industrial estate, ADDRESS REDACTED. Property Ref 2710/081",08/03/2017,0000430380,"16,147.50",Revenue,STONEWELL PROPERTY COMPANY LTD,00118138
South Ribble Council,http://statistics.data.gov.uk/doc/local-authority/30UN,Property Services,Rents,2401,Rents,08/03/2017,0000430380,"-2,850.00",Revenue,STONEWELL PROPERTY COMPANY LTD,00118138
South Ribble Council,http://statistics.data.gov.uk/doc/local-authority/30UN,Area 3 - Parks/Leyland East West,Grounds Maint Cntrctrs Chgs,4657,Spare Parts - Quoation Ref CJ211116CRev2To Include - Moulded sleeve/caps and bump stops,01/03/2017,0000430072,488.42,Revenue,SUTCLIFFE PLAY LTD,00034953
South Ribble Council,http://statistics.data.gov.uk/doc/local-authority/30UN,Area 3 - Parks/Leyland East West,Grounds Maint Cntrctrs Chgs,4657,Delivery,01/03/2017,0000430072,48.84,Revenue,SUTCLIFFE PLAY LTD,00034953
South Ribble Council,http://statistics.data.gov.uk/doc/local-authority/30UN,Property Services,Cleaning and Domestic Supplies,2711,Supply of cleaning & janitorial product for the Civic Centre,15/03/2017,0000430667,428.10,Revenue,SWIFT KLEEN,00119360
South Ribble Council,http://statistics.data.gov.uk/doc/local-authority/30UN,Healthy Communities,Sports Dev Expenses,4890,Booking 4 members of staff on the level 1 table tennis course in Garstang 11/12th Feb,31/03/2017,0000430959,760.00,Revenue,Table Tennis England,132184
South Ribble Council,http://statistics.data.gov.uk/doc/local-authority/30UN,Planning,Other Misc,4851,Ecological surveys for 2016 - 101 Consultations,17/03/2017,0000430668,"4,786.00",Revenue,TAMESIDE METROPOLITAN BOROUGH COUNCIL,00037293
South Ribble Council,http://statistics.data.gov.uk/doc/local-authority/30UN,Area 2 - Waste Transport/Eastern & Central Teams,Cap Vehicles,C451,Civils,17/03/2017,0000430570,"4,250.00",Revenue,Tecalemit Garage Equipment Company Limited,132135
South Ribble Council,http://statistics.data.gov.uk/doc/local-authority/30UN,Area 2 - Waste Transport/Eastern & Central Teams,Cap Vehicles,C451,modifications,17/03/2017,0000430571,563.00,Revenue,Tecalemit Garage Equipment Company Limited,132135
South Ribble Council,http://statistics.data.gov.uk/doc/local-authority/30UN,Area 2 - Waste Transport/Eastern & Central Teams,External Contractors Charges,4570,EXHAUST EXTRACTION AND CALIBRATION,24/03/2017,0000430838,400.00,Revenue,Tecalemit Garage Equipment Company Limited,132135
South Ribble Council,http://statistics.data.gov.uk/doc/local-authority/30UN,Area 2 - Waste Transport/Eastern & Central Teams,External Contractors Charges,4570,"Servicing on the vehicle lifts, jacking beams, compressor & torque wrench calibrations in February 2017",29/03/2017,0000430911,613.00,Revenue,Tecalemit Garage Equipment Company Limited,132135
South Ribble Council,http://statistics.data.gov.uk/doc/local-authority/30UN,Area 2 - Waste Transport/Eastern & Central Teams,Materials General,4040,1 SENSOR VO65 KPY JFC8299,03/03/2017,0000430367,426.59,Revenue,TERBERG MATEC UK LTD,00058625
South Ribble Council,http://statistics.data.gov.uk/doc/local-authority/30UN,Area 2 - Waste Transport/Eastern & Central Teams,Materials General,4040,2 SENSORS BIN376,03/03/2017,0000430368,818.78,Revenue,TERBERG MATEC UK LTD,00058625
South Ribble Council,http://statistics.data.gov.uk/doc/local-authority/30UN,Area 2 - Waste Transport/Eastern & Central Teams,External Contractors Charges,4570,"Spec Repair, PO13UUM, JFC8325. NAME REDACTED",08/03/2017,0000430419,329.98,Revenue,TERBERG MATEC UK LTD,00058625
South Ribble Council,http://statistics.data.gov.uk/doc/local-authority/30UN,Area 2 - Waste Transport/Eastern & Central Teams,Materials General,4040,"1 COVER, 1 BUTTON, 1 LAMP - VK09AHJ - JFC8132 - GA",10/03/2017,0000430482,470.84,Revenue,TERBERG MATEC UK LTD,00058625
South Ribble Council,http://statistics.data.gov.uk/doc/local-authority/30UN,Area 2 - Waste Transport/Eastern & Central Teams,Materials General,4040,1 SPEC REPAIR - VN10DKL - JFC8356 - GA,17/03/2017,0000430712,301.18,Revenue,TERBERG MATEC UK LTD,00058625
South Ribble Council,http://statistics.data.gov.uk/doc/local-authority/30UN,Area 2 - Waste Transport/Eastern & Central Teams,External Contractors Charges,4570,SPEC REPAIR - JFC8390 - VO65KPX - PD,31/03/2017,0000431048,816.82,Revenue,TERBERG MATEC UK LTD,00058625
South Ribble Council,http://statistics.data.gov.uk/doc/local-authority/30UN,HR & Communications,Training Expense-Course Fees,1408,COUNCSELLING SESSIONS FOR NAME REDACTED,08/03/2017,0000430458,720.00,Revenue,THE THERAPY COMPANY,131955
South Ribble Council,http://statistics.data.gov.uk/doc/local-authority/30UN,HR & Communications,Training Expense-Course Fees,1408,X5 SESSIONS FOR NAME REDACTED,31/03/2017,0000431110,300.00,Revenue,THE THERAPY COMPANY,131955
South Ribble Council,http://statistics.data.gov.uk/doc/local-authority/30UN,Legal,Publications,4142,ONLINE SUBSCRIPTION - WESTLAW UK SERVICES: COVERING PERIOD 01/01/2017 - 31/12/2017,22/03/2017,0000430676,"10,895.56",Revenue,THOMSON REUTERS,00034979
South Ribble Council,http://statistics.data.gov.uk/doc/local-authority/30UN,Area 3 - Parks/Leyland East West,Grounds Maint Cntrctrs Chgs,4657,2x Tyre with wooden floor with fixings.,22/03/2017,0000430337,445.64,Revenue,TIMBERPLAY LTD,00055440
South Ribble Council,http://statistics.data.gov.uk/doc/local-authority/30UN,Area 3 - Parks/Leyland East West,Grounds Maint Cntrctrs Chgs,4657,Carriage,22/03/2017,0000430337,44.56,Revenue,TIMBERPLAY LTD,00055440
South Ribble Council,http://statistics.data.gov.uk/doc/local-authority/30UN,Housing,Cap Grant- Improve Grants,C570,Supply and install Dimplex storage radiators as per your quote of 765.00 plus VAT,22/03/2017,0000430789,765.00,Revenue,Trade Energy,132102
South Ribble Council,http://statistics.data.gov.uk/doc/local-authority/30UN,Housing,Contributions,4730,Supply and Install UPVC double glazing as part of the winter warmth scheme,22/03/2017,0000430733,429.17,Revenue,TRADE WINDOWS & CONSERVATORIES,00119823
South Ribble Council,http://statistics.data.gov.uk/doc/local-authority/30UN,Housing,Contributions,4730,Supply and Install UPVC double glazing as part of the winter warmth scheme,22/03/2017,0000430741,404.17,Revenue,TRADE WINDOWS & CONSERVATORIES,00119823
South Ribble Council,http://statistics.data.gov.uk/doc/local-authority/30UN,Property Services,Water Charges,2511,18/11/16 to 12/2/17,03/03/2017,0000430308,555.46,Revenue,UNITED UTILITIES WATER PLC,00029845
South Ribble Council,http://statistics.data.gov.uk/doc/local-authority/30UN,Property Services,Water Charges,2511,1/4/17 to 31/3/18,08/03/2017,0000430464,"1,702.72",Revenue,UNITED UTILITIES WATER PLC,00029845
South Ribble Council,http://statistics.data.gov.uk/doc/local-authority/30UN,Property Services,Water Charges,2511,15/11/16 to 14/2/17,08/03/2017,0000430467,"7,203.93",Revenue,UNITED UTILITIES WATER PLC,00029845
South Ribble Council,http://statistics.data.gov.uk/doc/local-authority/30UN,Property Services,Water Charges,2511,15/8/16 to 14/,08/03/2017,0000430471,"7,018.47",Revenue,UNITED UTILITIES WATER PLC,00029845
South Ribble Council,http://statistics.data.gov.uk/doc/local-authority/30UN,Property Services,Water Charges,2511,Water Charges,10/03/2017,0000430532,"3,561.50",Revenue,UNITED UTILITIES WATER PLC,00029845
South Ribble Council,http://statistics.data.gov.uk/doc/local-authority/30UN,Planning,Professional Fees,4510,Support on Minerals Safeguarding Area advice,31/03/2017,0000431111,"1,540.00",Revenue,URBAN VISION  PARTNERSHIP LTD,00105659
South Ribble Council,http://statistics.data.gov.uk/doc/local-authority/30UN,Area 1 - Penwortham Western Parishes,Operational Furniture & Equip,4013,Renewal of the Annual Support & Maintenance fir the Vemotion System at Moss Side  Leyland,22/03/2017,0000430127,850.00,Revenue,Vemotion Interactive Ltd,131574
South Ribble Council,http://statistics.data.gov.uk/doc/local-authority/30UN,Area 1 - Penwortham Western Parishes,Operational Furniture & Equip,4013,Renewal of the Annual Support & Maintenance for the Vemotion System at Withy Grove Park 10.3.17 - 9.3.18,22/03/2017,0000430128,850.00,Revenue,Vemotion Interactive Ltd,131574
South Ribble Council,http://statistics.data.gov.uk/doc/local-authority/30UN,Property Services,Operational Furniture & Equip,4012,2016 / 2017 rental fees for vending machines at the Civic Centre from September 2016 to March 2017,01/03/2017,0000430239,322.09,Revenue,VENDING ENTERPRISES,00101501
South Ribble Council,http://statistics.data.gov.uk/doc/local-authority/30UN,Healthy Communities,Operational Furniture & Equip,4012,Stock for the coffee machines,22/03/2017,0000430821,397.80,Revenue,VENDING ENTERPRISES,00101501
South Ribble Council,http://statistics.data.gov.uk/doc/local-authority/30UN,Property Services,Rep & Maint Fixed Plant,2035,"2017 / 2018 contract for CCTV monitoring at the Civic Centre, Leyland",15/03/2017,0000430577,"2,596.61",Revenue,VISUAL VERIFICATION LTD,00079992
South Ribble Council,http://statistics.data.gov.uk/doc/local-authority/30UN,Property Services,Rep & Maint Fixed Plant,2035,"2017 / 2018 contract for CCTV monitoring at Moss Side Depot, Leyland",15/03/2017,0000430598,"2,609.54",Revenue,VISUAL VERIFICATION LTD,00079992
South Ribble Council,http://statistics.data.gov.uk/doc/local-authority/30UN,Information Services,Peripherals,4269,"Annual purchase order for ISDN lines, line rentals & call charges for period 01/04/16 - 31/03/17",03/03/2017,0000430353,"1,235.48",Revenue,VODAFONE RE:CABLE & WIRELESS UK,130810
South Ribble Council,http://statistics.data.gov.uk/doc/local-authority/30UN,Information Services,Peripherals,4247,"Annual purchase order for link, internet & router for period 01/04/16 - 31/03/17",03/03/2017,0000430415,"1,312.66",Revenue,VODAFONE RE:CABLE & WIRELESS UK,130810
South Ribble Council,http://statistics.data.gov.uk/doc/local-authority/30UN,Information Services,Peripherals,4269,"Annual purchase order for ISDN lines, line rentals & call charges for period 01/04/16 - 31/03/17",31/03/2017,0000431043,"1,240.72",Revenue,VODAFONE RE:CABLE & WIRELESS UK,130810
South Ribble Council,http://statistics.data.gov.uk/doc/local-authority/30UN,Legal,Agency Fees,1121,Weightmans Solicitors (NAME READACTED) to carry out an investigation into the leaked confidential licensing report.,08/03/2017,0000430422,675.00,Revenue,WEIGHTMANS LLP,00120867
South Ribble Council,http://statistics.data.gov.uk/doc/local-authority/30UN,HR & Communications,Advertising,4848,WORK CARRIED OUT FOR SOCIAL MEDIA CONCERNS/DEFAMATION,10/03/2017,0000430559,729.00,Revenue,WEIGHTMANS LLP,00120867
South Ribble Council,http://statistics.data.gov.uk/doc/local-authority/30UN,Area 2 - Waste Transport/Eastern & Central Teams,Cap Vehicles,C440,1 x Nissan NV200 Van (including registration fee),29/03/2017,0000430902,"10,857.15",Revenue,Westway Nissan,131964
South Ribble Council,http://statistics.data.gov.uk/doc/local-authority/30UN,Area 2 - Waste Transport/Eastern & Central Teams,Vehicle Running Costs,3137,Road Tax for above vehicle,29/03/2017,0000430902,230.00,Revenue,Westway Nissan,131964
South Ribble Council,http://statistics.data.gov.uk/doc/local-authority/30UN,Area 2 - Waste Transport/Eastern & Central Teams,Vehicle Running Costs,3137,new reg fee,29/03/2017,0000430902,55.00,Revenue,Westway Nissan,131964
South Ribble Council,http://statistics.data.gov.uk/doc/local-authority/30UN,Area 1 - Penwortham Western Parishes,Grounds Maintanance,2040,"KERBING AND RE-SURFACE ENTRANCE, INSTALL HEIGHT BARRIER AT PENWORTHAM HOLME CAR PARK ENTRANCE.",01/03/2017,0000429636,"2,275.00",Revenue,WILLIAM PYE LTD,00031590
South Ribble Council,http://statistics.data.gov.uk/doc/local-authority/30UN,Area 1 - Penwortham Western Parishes,Grounds Maintanance,2040,HIGHER WALTON CAR PARK REPAIR 12 POTHOLES AND THEN OVERLAY WHOLE AREA WITH TARMAC AREA 21.5 x 21,01/03/2017,0000430302,"6,975.00",Revenue,WILLIAM PYE LTD,00031590
South Ribble Council,http://statistics.data.gov.uk/doc/local-authority/30UN,Area 3 - Parks/Leyland East West,Grounds Maint Cntrctrs Chgs,4657,Repair of Finger post.,29/03/2017,0000429911,600.00,Revenue,WOODSTOCK SIGNS,00039039
South Ribble Council,http://statistics.data.gov.uk/doc/local-authority/30UN,Area 3 - Parks/Leyland East West,Grounds Maint Cntrctrs Chgs,4657,3no Vinyl overlays.,29/03/2017,0000429911,90.00,Revenue,WOODSTOCK SIGNS,00039039
South Ribble Council,http://statistics.data.gov.uk/doc/local-authority/30UN,Property Services,Rep & Maint Premises,2020,"At Holland House Farm Pavilion, provide and replace a 2No internal flue vents and roof flashing slate - to include replacement ",15/03/2017,0000430399,"1,102.70",Revenue,Wright Build Limited,131203
South Ribble Council,http://statistics.data.gov.uk/doc/local-authority/30UN,Property Services,Rep & Maint Premises,2020,"At Moss Side Depot, cut out and excavate concrete to 6No gullies to a width of 0.5m to all sides. Re-position to correct levels",08/03/2017,0000430400,"1,850.00",Revenue,Wright Build Limited,131203
South Ribble Council,http://statistics.data.gov.uk/doc/local-authority/30UN,Property Services,Rep & Maint Premises,2020,Rebuild grid areas with new brickwork to 5 chambers below the concrete areas and replace 7 heavy duty grids as current grids,08/03/2017,0000430400,"2,562.00",Revenue,Wright Build Limited,131203
South Ribble Council,http://statistics.data.gov.uk/doc/local-authority/30UN,Property Services,Rep & Maint Premises,2020,Rep & Maint Premises,24/03/2017,0000430401,"1,600.00",Revenue,Wright Build Limited,131203
South Ribble Council,http://statistics.data.gov.uk/doc/local-authority/30UN,Property Services,Rep & Maint Premises,2020,ADDRESS REDACTED 1.Rear yard/boundary wall - replace 1 no defective fence panel adjacent to yard gate 2. Repair hole to,15/03/2017,0000430402,593.70,Revenue,Wright Build Limited,131203
South Ribble Council,http://statistics.data.gov.uk/doc/local-authority/30UN,Property Services,Rep & Maint Premises,2020,Fit new 54mm water stop tap to the sweeper garage at Moss side Depot,24/03/2017,0000430855,301.67,Revenue,Wright Build Limited,131203
South Ribble Council,http://statistics.data.gov.uk/doc/local-authority/30UN,Property Services,Rep & Maint Premises,2020,Excavate approx. 3  linear metres of concrete to fit new arco drainage and enlarged gully to corner of area 3 garage at Moss Side,24/03/2017,0000430855,301.67,Revenue,Wright Build Limited,131203
South Ribble Council,http://statistics.data.gov.uk/doc/local-authority/30UN,Property Services,Rep & Maint Premises,2020,Cut back floor to metal storage container cabin room and fit capping to the end of flooring at Moss Side Depot,24/03/2017,0000430855,301.66,Revenue,Wright Build Limited,131203
South Ribble Council,http://statistics.data.gov.uk/doc/local-authority/30UN,HR & Communications,Training Expense-Course Fees,1408,ACTIVITY THROUGHOUT FEBRUARY 2017,29/03/2017,0000430978,465.00,Revenue,WRIGHTINGTON WIGAN & LEIGH NHS FOUNDATION TRUST,131288
South Ribble Council,http://statistics.data.gov.uk/doc/local-authority/30UN,Planning,Professional Fees,4510,Professional consultancy services in connection with South Ribble Retail Study 2016 - Stage 2 Professional Planning Fees ,22/03/2017,0000430797,"9,210.00",Revenue,WYG ENVIRONMENT TRANSPORT LIMITED,130177
South Ribble Council,http://statistics.data.gov.uk/doc/local-authority/30UN,Information Services,Peripherals,4248,ProPrint annual licence & support for period 01/04/17 - 31/03/18,10/03/2017,0000430536,"2,411.00",Revenue,XLPRINT SOFTWARE,00119658
South Ribble Council,http://statistics.data.gov.uk/doc/local-authority/30UN,Shared Assurance Services,Professional Fees,4510,Health and Safety Risk Management Review 16th-17th November. 6000 + VAT,17/03/2017,0000428301,"5,000.00",Revenue,ZURICH MANAGEMENT SERVICES,00113159
South Ribble Council,http://statistics.data.gov.uk/doc/local-authority/30UN,Shared Assurance Services,Professional Fees,4510,Health and Safety Risk Management Review 16th-17th November. 6000 + VAT,15/03/2017,0000430550,"1,000.00",Revenue,ZURICH MANAGEMENT SERVICES,00113159
South Ribble Council,http://statistics.data.gov.uk/doc/local-authority/30UN,Shared Assurance Services,Professional Fees,4510,Risk Management Consultancy Service,15/03/2017,0000430584,"1,250.00",Revenue,ZURICH MANAGEMENT SERVICES,00113159
South Ribble Council,http://statistics.data.gov.uk/doc/local-authority/30UN,Shared Assurance Services,Employee Related Insurance,1800,"annual insurance policies Casualty, Motor, personal accident, engineering. Engineering inspection policy",08/03/2017,0000430338,"141,324.66",Revenue,Zurich Municipal Insurance plc,132190
South Ribble Council,http://statistics.data.gov.uk/doc/local-authority/30UN,Shared Assurance Services,Employee Related Insurance,1800,Employee Related Insurance,24/03/2017,0000430597,"1,913.38",Revenue,Zurich Municipal Insurance plc,132190
South Ribble Council,http://statistics.data.gov.uk/doc/local-authority/30UN,Shared Financial Services,Legal,4822,NAME REDACTED - 03/11/16 - HM Courts - Payment for issue fee - charging order application,31/03/2017,0000429350,110.00,Revenue,Barclays Bank Plc,130842
South Ribble Council,http://statistics.data.gov.uk/doc/local-authority/30UN,Shared Financial Services,Legal,4822,NAME REDACTED - 09/11/16 - HM Courts - Preston Mag Court x 19,31/03/2017,0000429350,57.00,Revenue,Barclays Bank Plc,130842
South Ribble Council,http://statistics.data.gov.uk/doc/local-authority/30UN,Shared Financial Services,Legal,4822,NAME REDACTED - 09/11/16 - HM Courts - Preston Mag Court x 280,31/03/2017,0000429350,840.00,Revenue,Barclays Bank Plc,130842
South Ribble Council,http://statistics.data.gov.uk/doc/local-authority/30UN,Shared Financial Services,Contractors Charges 5,5311,NAME REDACTED - 16/11/16 - Preston City Council,31/03/2017,0000429350,19.29,Revenue,Barclays Bank Plc,130842
South Ribble Council,http://statistics.data.gov.uk/doc/local-authority/30UN,Shared Financial Services,General Travel Costs,3411,NAME REDACTED - 07/11/16 - Virgin Trains - rail fare,31/03/2017,0000429350,483.00,Revenue,Barclays Bank Plc,130842
South Ribble Council,http://statistics.data.gov.uk/doc/local-authority/30UN,Shared Financial Services,Other Misc,4851,NAME REDACTED - 07/11/16 - 1&1 Internet Ltd,31/03/2017,0000429350,11.99,Revenue,Barclays Bank Plc,130842
South Ribble Council,http://statistics.data.gov.uk/doc/local-authority/30UN,Shared Financial Services,General Travel Costs,3411,NAME REDACTED - 16/11/16 - Virgin Trains - rail fare,31/03/2017,0000429350,55.10,Revenue,Barclays Bank Plc,130842
South Ribble Council,http://statistics.data.gov.uk/doc/local-authority/30UN,Shared Financial Services,Training Expense-Course Fees,1402,NAME REDACTED - 16/11/16 - CIEH Ltd,31/03/2017,0000429350,60.00,Revenue,Barclays Bank Plc,130842
South Ribble Council,http://statistics.data.gov.uk/doc/local-authority/30UN,Shared Financial Services,Training Expense-Course Fees,1402,NAME REDACTED - 21/11/16 - Paypal RTPI - 10 NW Places,31/03/2017,0000429350,800.00,Revenue,Barclays Bank Plc,130842
South Ribble Council,http://statistics.data.gov.uk/doc/local-authority/30UN,Shared Financial Services,General Travel Costs,3411,NAME REDACTED - 21/11/16 - Virgin Trains - rail fare,31/03/2017,0000429350,80.75,Revenue,Barclays Bank Plc,130842
South Ribble Council,http://statistics.data.gov.uk/doc/local-authority/30UN,Shared Financial Services,General Travel Costs,3411,NAME REDACTED - 22/11/16 - Virgin Trains - rail fare,31/03/2017,0000429350,38.00,Revenue,Barclays Bank Plc,130842
South Ribble Council,http://statistics.data.gov.uk/doc/local-authority/30UN,Shared Financial Services,Other Misc,4851,NAME REDACTED - 22/11/16 - 1&1 Internet Ltd - 1&1 list local fee,31/03/2017,0000429350,9.99,Revenue,Barclays Bank Plc,130842
South Ribble Council,http://statistics.data.gov.uk/doc/local-authority/30UN,Shared Financial Services,Other Misc,4851,NAME REDACTED - 23/11/16 - Poundstretcher - Christmas in Leyland supplies,31/03/2017,0000429350,34.96,Revenue,Barclays Bank Plc,130842
South Ribble Council,http://statistics.data.gov.uk/doc/local-authority/30UN,Shared Financial Services,Other Misc,4851,NAME REDACTED - 23/11/16 - The Range - Christmas in Leyland supplies,31/03/2017,0000429350,29.01,Revenue,Barclays Bank Plc,130842
South Ribble Council,http://statistics.data.gov.uk/doc/local-authority/30UN,Shared Financial Services,Other Misc,4851,NAME REDACTED - 23/11/16 - Tesco Stores - Christmas in Leyland suppliers,31/03/2017,0000429350,53.54,Revenue,Barclays Bank Plc,130842
South Ribble Council,http://statistics.data.gov.uk/doc/local-authority/30UN,Shared Financial Services,Other Misc,4851,NAME REDACTED - 28/11/16 - Piktochart - annual non profit subscription,31/03/2017,0000429351,33.06,Revenue,Barclays Bank Plc,130842
South Ribble Council,http://statistics.data.gov.uk/doc/local-authority/30UN,Shared Financial Services,Other Misc,4851,NAME REDACTED - 28/11/16 - Tesco Stores,31/03/2017,0000429351,87.95,Revenue,Barclays Bank Plc,130842
South Ribble Council,http://statistics.data.gov.uk/doc/local-authority/30UN,Shared Financial Services,Peripherals,4247,NAME REDACTED - 29/11/16 - Becnet Ltd - ASA 5505 power supply,31/03/2017,0000429351,49.53,Revenue,Barclays Bank Plc,130842
South Ribble Council,http://statistics.data.gov.uk/doc/local-authority/30UN,Shared Financial Services,Other Misc,4851,NAME REDACTED - 01/12/16 - Amazon UK Marketplace - natural dried preserved moss,31/03/2017,0000429351,33.79,Revenue,Barclays Bank Plc,130842
South Ribble Council,http://statistics.data.gov.uk/doc/local-authority/30UN,Shared Financial Services,General Travel Costs,3411,NAME REDACTED - 01/12/16 - Virgin Trains - rail fare,31/03/2017,0000429351,160.05,Revenue,Barclays Bank Plc,130842
South Ribble Council,http://statistics.data.gov.uk/doc/local-authority/30UN,Shared Financial Services,General Travel Costs,3411,NAME REDACTED - 07/12/16 - Virgin Trains - rail fare,31/03/2017,0000429351,-16.10,Revenue,Barclays Bank Plc,130842
South Ribble Council,http://statistics.data.gov.uk/doc/local-authority/30UN,Shared Financial Services,Rents,2403,"NAME REDACTED - 12/12/16 - Holiday Inn, Kensington - hotel accomodation",31/03/2017,0000429351,90.73,Revenue,Barclays Bank Plc,130842
South Ribble Council,http://statistics.data.gov.uk/doc/local-authority/30UN,Shared Financial Services,Rents,2403,"NAME REDACTED - 12/12/16 - Holiday Inn, Kensington - hotel accomodation",31/03/2017,0000429351,75.74,Revenue,Barclays Bank Plc,130842
South Ribble Council,http://statistics.data.gov.uk/doc/local-authority/30UN,Shared Financial Services,Payroll Suspense,1741,NAME REDACTED - 19/12/16 - RICS Subs UK,31/03/2017,0000429351,469.00,Revenue,Barclays Bank Plc,130842
South Ribble Council,http://statistics.data.gov.uk/doc/local-authority/30UN,Shared Financial Services,Other Misc,4851,NAME REDACTED - 22/12/16 - 1&1 Internet Ltd - annual web hosting,31/03/2017,0000429351,129.87,Revenue,Barclays Bank Plc,130842
South Ribble Council,http://statistics.data.gov.uk/doc/local-authority/30UN,Shared Financial Services,Legal,4822,NAME REDACTED - 05/01/17 - HM Courts - Court costs 407 liability orders,31/03/2017,0000430450,"1,221.00",Revenue,Barclays Bank Plc,130842
South Ribble Council,http://statistics.data.gov.uk/doc/local-authority/30UN,Shared Financial Services,Operational Furniture & Equip,4010,NAME REDACTED - 05/01/07 - Paypal Property - Leica Geosytems laser distance meter,31/03/2017,0000430450,95.00,Revenue,Barclays Bank Plc,130842
South Ribble Council,http://statistics.data.gov.uk/doc/local-authority/30UN,Shared Financial Services,General Travel Costs,3411,NAME REDACTED - 05/01/17 - Virgin Trains - rail fare Preston-London 07/02/17 Cllr NAME REDACTED,31/03/2017,0000430450,165.00,Revenue,Barclays Bank Plc,130842
South Ribble Council,http://statistics.data.gov.uk/doc/local-authority/30UN,Shared Financial Services,General Travel Costs,3411,NAME REDACTED - 05/01/17 - Virgin Trains - rail fares Kirkham-Manchester 31/01/17 NAME REDACTED,31/03/2017,0000430450,36.00,Revenue,Barclays Bank Plc,130842
South Ribble Council,http://statistics.data.gov.uk/doc/local-authority/30UN,Shared Financial Services,Other Misc,4851,NAME REDACTED - 23/01/17 - 1&1 Internet Ltd - Local list,31/03/2017,0000430450,9.99,Revenue,Barclays Bank Plc,130842
South Ribble Council,http://statistics.data.gov.uk/doc/local-authority/30UN,Shared Financial Services,Legal,4822,NAME REDACTED - 02/02/17 - HM Courts - Court costs 111 liability orders,31/03/2017,0000430596,333.00,Revenue,Barclays Bank Plc,130842
South Ribble Council,http://statistics.data.gov.uk/doc/local-authority/30UN,Shared Financial Services,Training Expense-Course Fees,1402,NAME REDACTED - 31/01/07 - EB Lancashire Branch - Attendance at HR Conference 25/02/17,31/03/2017,0000430596,91.66,Revenue,Barclays Bank Plc,130842
South Ribble Council,http://statistics.data.gov.uk/doc/local-authority/30UN,Shared Financial Services,Other Misc,4851,NAME REDACTED - 02/02/17 - www.meadowmania.co.uk - wildflower seed for WW1 Comm,31/03/2017,0000430596,221.68,Revenue,Barclays Bank Plc,130842
South Ribble Council,http://statistics.data.gov.uk/doc/local-authority/30UN,Shared Financial Services,Other Misc,4851,NAME REDACTED - 06/02/17 - 1&1 Internet Ltd - Refund list local,31/03/2017,0000430596,-9.99,Revenue,Barclays Bank Plc,130842
South Ribble Council,http://statistics.data.gov.uk/doc/local-authority/30UN,Shared Financial Services,Other Misc,4851,NAME REDACTED - 15/02/17 - www.DHL.International - courier documents to consultee,31/03/2017,0000430596,36.24,Revenue,Barclays Bank Plc,130842
South Ribble Council,http://statistics.data.gov.uk/doc/local-authority/30UN,Shared Financial Services,Other Misc,485R,NAME REDACTED - 16/02/17 - Amazon UK Retail - rechargeable lamp,31/03/2017,0000430596,23.99,Revenue,Barclays Bank Plc,130842
South Ribble Council,http://statistics.data.gov.uk/doc/local-authority/30UN,Shared Financial Services,Rents,2403,NAME REDACTED - 16/02/17 - Travelodge - Accom 25-27/4/17 Newbury,31/03/2017,0000430596,98.33,Revenue,Barclays Bank Plc,130842
South Ribble Council,http://statistics.data.gov.uk/doc/local-authority/30UN,Shared Financial Services,Other Misc,4851,NAME REDACTED - 20/02/17 - Sainsburys - Buffet 20/02/17,31/03/2017,0000430596,104.00,Revenue,Barclays Bank Plc,130842
South Ribble Council,http://statistics.data.gov.uk/doc/local-authority/30UN,Shared Financial Services,Other Misc,4851,NAME REDACTED - 20/02/17 - NAME REDACTED (Leyland) - insurance premium SR VCFS network,31/03/2017,0000430596,169.77,Revenue,Barclays Bank Plc,130842
South Ribble Council,http://statistics.data.gov.uk/doc/local-authority/30UN,Shared Financial Services,Legal,4822,NAME REDACTED - 08/08/16 - HM Courst Service - 10 NNDR liability orders,31/03/2017,0000431044,30.00,Revenue,Barclays Bank Plc,130842
South Ribble Council,http://statistics.data.gov.uk/doc/local-authority/30UN,Shared Financial Services,Legal,4822,NAME REDACTED - 08/08/16 - HM Courst Service - 248 CT liability orders,31/03/2017,0000431044,744.00,Revenue,Barclays Bank Plc,130842
South Ribble Council,http://statistics.data.gov.uk/doc/local-authority/30UN,Shared Financial Services,Other Misc,4869,NAME REDACTED - 28/07/16 - EB Storm Desmond,31/03/2017,0000431044,75.00,Revenue,Barclays Bank Plc,130842
South Ribble Council,http://statistics.data.gov.uk/doc/local-authority/30UN,Shared Financial Services,Rents,2403,NAME REDACTED - 01/08/16 - Travelodge - Accom,31/03/2017,0000431044,144.95,Revenue,Barclays Bank Plc,130842
South Ribble Council,http://statistics.data.gov.uk/doc/local-authority/30UN,Shared Financial Services,General Travel Costs,3411,NAME REDACTED - 01/08/16 - Virgintrains.co.uk - rail fares Buckshaw-London 17/10/16 NAME REDACTED,31/03/2017,0000431044,88.35,Revenue,Barclays Bank Plc,130842
South Ribble Council,http://statistics.data.gov.uk/doc/local-authority/30UN,Shared Financial Services,General Travel Costs,3411,NAME REDACTED - 01/08/16 - Virgintrains.co.uk - rail fares - Preston -Birmingham 22/9/16 NAME REDACTED,31/03/2017,0000431044,48.10,Revenue,Barclays Bank Plc,130842
South Ribble Council,http://statistics.data.gov.uk/doc/local-authority/30UN,Shared Financial Services,General Travel Costs,3411,NAME REDACTED - 21/09/16 - Virgintrains.co.uk - rail fares - Buckshaw-London 7/9/16 NAME REDACTED,31/03/2017,0000431044,71.35,Revenue,Barclays Bank Plc,130842
South Ribble Council,http://statistics.data.gov.uk/doc/local-authority/30UN,Shared Financial Services,Other Misc,4851,NAME REDACTED - 08/08/16 - Amazon UK Marketplace,31/03/2017,0000431044,12.98,Revenue,Barclays Bank Plc,130842
South Ribble Council,http://statistics.data.gov.uk/doc/local-authority/30UN,Shared Financial Services,Other Misc,4869,NAME REDACTED - 09/08/16 - CIEH,31/03/2017,0000431044,75.00,Revenue,Barclays Bank Plc,130842
South Ribble Council,http://statistics.data.gov.uk/doc/local-authority/30UN,Shared Financial Services,General Travel Costs,3411,NAME RDACTED - 15/08/16 - Virgintrains.co.uk - rail fares Poulton to Birmingham 20/9/16 NAME REDACTED,31/03/2017,0000431044,54.25,Revenue,Barclays Bank Plc,130842
South Ribble Council,http://statistics.data.gov.uk/doc/local-authority/30UN,Shared Financial Services,Other Misc,4851,NAME REDACTED - 25/08/16 -Currys Online - Polaroid Camera,31/03/2017,0000431044,125.00,Revenue,Barclays Bank Plc,130842
